Workbook

Sheet TOTAL FUNCFAC
A1: PacifiCorp
A2: 12 Months Ended December 2016
A3: FUNCTIONAL FACTORS
A6: Function | B6: Description | C6: Production | D6: Transmission | E6: DPW | F6: CUST | G6: DMSC | H6: Total
A7: ACCMDIT | B7: Deferred Income Tax | C7: =ACCUMDIT!D50 -> 0.5044912245 | D7: =ACCUMDIT!E50 -> 0.2543012587 | E7: =ACCUMDIT!F50 -> 0.2403505581 | F7: =ACCUMDIT!G50 -> 0.0008569586371 | G7: =ACCUMDIT!H50 -> 0 | H7: 1
A8: BOOKDEPR | B8: Book Depreciation | C8: =BOOKDPR!C13 -> 0.6117681126 | D8: =BOOKDPR!D13 -> 0.1629774882 | E8: =BOOKDPR!E13 -> 0.2233972351 | F8: =BOOKDPR!F13 -> 0.001857164066 | G8: =BOOKDPR!G13 -> 0 | H8: =ROUND(SUM(C8:G8),4) -> 1
A9: COM_EQ | B9: Communication Equipment Acct 397 | C9: 0 | D9: 0 | E9: 0 | F9: 0 | G9: 0 | H9: 0
A10: CUST | B10: Distribution Retail | C10: 0 | D10: 0 | E10: 0 | F10: 1 | G10: 0 | H10: 1
A11: DDS2 | B11: Deferred Debits - Situs | C11: =DDS!F34 -> 0.9177579591 | D11: =DDS!G34 -> -0.01458156925 | E11: =DDS!H34 -> -0.05258934416 | F11: =DDS!I34 -> 0.1468279244 | G11: =DDS!J34 -> 0.002585029993 | H11: 1
A12: DDS6 | B12: Deferred Debits - Situs | C12: 0 | D12: 0 | E12: 0 | F12: 0 | G12: 0 | H12: 0
A13: DDSO2 | B13: Deferred Debits - System Overhead | C13: =DDS!F33 -> 0.4518715726 | D13: =DDS!G33 -> 0.0871880608 | E13: =DDS!H33 -> 0.3235869976 | F13: =DDS!I33 -> 0.1311091456 | G13: =DDS!J33 -> 0.006244223424 | H13: 1
A14: DDSO6 | B14: Deferred Debits - System Overhead | C14: =IF(DDS!F54=0,0,DDS!F54) -> 0 | D14: =DDS!G54 -> 0 | E14: =DDS!H54 -> 0 | F14: =DDS!I54 -> 0 | G14: =DDS!J54 -> 1 | H14: 1
A15: DEFSG | B15: Deferred Debit - System Generation | C15: =DDS!F53 -> 0.7488307499 | D15: =DDS!G53 -> 0.2511692501 | E15: =DDS!H53 -> 0 | F15: =DDS!I53 -> 0 | G15: =DDS!J53 -> 0 | H15: 1
A16: DMSC | B16: Distribution Miscellaneous | C16: 0 | D16: 0 | E16: 0 | F16: 0 | G16: 1 | H16: 1
A17: DPW | B17: Distribution Poles & Wires | C17: ='FORM 1'!C15 -> 0 | D17: ='FORM 1'!D15 -> 0 | E17: ='FORM 1'!E15 -> 1 | F17: ='FORM 1'!F15 -> 0 | G17: ='FORM 1'!G15 -> 0 | H17: 1
A18: ESD | B18: Environmental Services Department | C18: 0.3 | D18: 0.1 | E18: 0.6 | F18: 0 | G18: 0 | H18: 1
A19: FERC | B19: FERC Fees | C19: ='FORM 1'!C39 -> 0.4949495124 | D19: ='FORM 1'!D39 -> 0.5050504876 | E19: ='FORM 1'!E39 -> 0 | F19: ='FORM 1'!F39 -> 0 | G19: ='FORM 1'!G39 -> 0 | H19: 1
A20: G | B20: General Plant | C20: ='GENERAL PLANT'!E38 -> 0.2191348442 | D20: ='GENERAL PLANT'!F38 -> 0.3512730285 | E20: ='GENERAL PLANT'!G38 -> 0.413054876 | F20: ='GENERAL PLANT'!H38 -> 0.01653725132 | G20: ='GENERAL PLANT'!I38 -> 0 | H20: 1
A21: G-DGP | B21: General Plant - DGP Factor | C21: =+C70 -> 0.668603182 | D21: =+D70 -> 0.331396818 | E21: =+E70 -> 0 | F21: =+F70 -> 0 | G21: =+G70 -> 0 | H21: 1
A22: G-DGU | B22: General Plant - DGU Factor | C22: =+C21 -> 0.668603182 | D22: =+D21 -> 0.331396818 | E22: =+E21 -> 0 | F22: =+F21 -> 0 | G22: =+G21 -> 0 | H22: 1
A23: GP | B23: Total Plant | C23: ='GROSS PLANT'!E42 -> 0.4841867519 | D23: ='GROSS PLANT'!F42 -> 0.2446636008 | E23: ='GROSS PLANT'!G42 -> 0.2650926256 | F23: ='GROSS PLANT'!H42 -> 0.006057021687 | G23: ='GROSS PLANT'!I42 -> 0 | H23: 1
A24: G-SG | B24: General Plant - SG Factor | C24: ='GENERAL PLANT'!E34 -> 0.4274132102 | D24: ='GENERAL PLANT'!F34 -> 0.5725867898 | E24: ='GENERAL PLANT'!G34 -> 0 | F24: ='GENERAL PLANT'!H34 -> 0 | G24: ='GENERAL PLANT'!I34 -> 0 | H24: 1
A25: G-SITUS | B25: General Plant - SITUS Factor | C25: ='GENERAL PLANT'!E36 -> 0 | D25: ='GENERAL PLANT'!F36 -> 0.3117026788 | E25: ='GENERAL PLANT'!G36 -> 0.6882973212 | F25: ='GENERAL PLANT'!H36 -> 0 | G25: ='GENERAL PLANT'!I36 -> 0 | H25: 1
A26: I | B26: Intangible Plant | C26: ='INTANGIBLE PLANT'!D35 -> 0.4872800989 | D26: ='INTANGIBLE PLANT'!E35 -> 0.1776921622 | E26: ='INTANGIBLE PLANT'!F35 -> 0.1555286061 | F26: ='INTANGIBLE PLANT'!G35 -> 0.1794991328 | G26: ='INTANGIBLE PLANT'!H35 -> 0 | H26: 1
A27: I-DGP | B27: Intangible Plant - DGP Factor | C27: 1 | D27: 0 | E27: 0 | F27: 0 | G27: 0 | H27: 1
A28: I-DGU | B28: Intangible Plant - DGU Factor | C28: 1 | D28: 0 | E28: 0 | F28: 0 | G28: 0 | H28: 1
A29: I-SG | B29: Intangible Plant - SG Factor | C29: ='INTANGIBLE PLANT'!D33 -> 0.8335426569 | D29: ='INTANGIBLE PLANT'!E33 -> 0.1664573431 | E29: ='INTANGIBLE PLANT'!F33 -> 0 | F29: ='INTANGIBLE PLANT'!G33 -> 0 | G29: ='INTANGIBLE PLANT'!H33 -> 0 | H29: 1
A30: I-SITUS | B30: Intangible Plant - SITUS Factor | C30: ='INTANGIBLE PLANT'!D34 -> 2.061177629 | D30: ='INTANGIBLE PLANT'!E34 -> -0.5212699195 | E30: ='INTANGIBLE PLANT'!F34 -> -0.5399077093 | F30: ='INTANGIBLE PLANT'!G34 -> 0 | G30: ='INTANGIBLE PLANT'!H34 -> 0 | H30: 1
A31: LABOR | B31: Direct Labor Expense | C31: ='FORM 1'!C25 -> 0.4608921071 | D31: ='FORM 1'!D25 -> 0.08724591166 | E31: ='FORM 1'!E25 -> 0.314657853 | F31: ='FORM 1'!F25 -> 0.1372041283 | G31: ='FORM 1'!G25 -> 0 | H31: 1
A32: MSS | B32: Materials & Supplies | C32: ='FORM 1'!C32 -> 0.8544088459 | D32: ='FORM 1'!D32 -> 0.008321966675 | E32: ='FORM 1'!E32 -> 0.1372691875 | F32: ='FORM 1'!F32 -> 0 | G32: ='FORM 1'!G32 -> 0 | H32: 1
A33: OTHDGP | B33: Other Revenues - DGP Factor | C33: =C37 -> 0.2244204206 | D33: =D37 -> 0.7755795794 | E33: =E37 -> 0 | F33: =F37 -> 0 | G33: =G37 -> 0 | H33: =ROUND(SUM(C33:G33),4) -> 1
A34: OTHDGU | B34: Other Revenues - DGU Factor | C34: =C37 -> 0.2244204206 | D34: =D37 -> 0.7755795794 | E34: =E37 -> 0 | F34: =F37 -> 0 | G34: =G37 -> 0 | H34: 1
A35: OTHSE | B35: Other Revenues - SE Factor | C35: ='OTHER REVENUE'!E25 -> 0 | D35: ='OTHER REVENUE'!F25 -> 1 | E35: ='OTHER REVENUE'!G25 -> 0 | F35: ='OTHER REVENUE'!H25 -> 0 | G35: ='OTHER REVENUE'!I25 -> 0 | H35: 1
A36: OTHSG | B36: Other Revenues - SG Factor | C36: ='OTHER REVENUE'!E26 -> 0.2244204206 | D36: ='OTHER REVENUE'!F26 -> 0.7755795794 | E36: ='OTHER REVENUE'!G26 -> 0 | F36: ='OTHER REVENUE'!H26 -> 0 | G36: ='OTHER REVENUE'!I26 -> 0 | H36: 1
A37: OTHSGR | B37: Other Revenues - Rolled-In SG Factor | C37: =+C36 -> 0.2244204206 | D37: =+D36 -> 0.7755795794 | E37: =+E36 -> 0 | F37: =+F36 -> 0 | G37: =+G36 -> 0 | H37: 1
A38: OTHSITUS | B38: Other Revenues - SITUS | C38: ='OTHER REVENUE'!E23 -> -0.03888632951 | D38: ='OTHER REVENUE'!F23 -> 0.8541777177 | E38: ='OTHER REVENUE'!G23 -> 0 | F38: ='OTHER REVENUE'!H23 -> 0 | G38: ='OTHER REVENUE'!I23 -> 0.1847086118 | H38: 1
A39: OTHSO | B39: Other Revenues - SO Factor | C39: ='OTHER REVENUE'!E27 -> 0 | D39: ='OTHER REVENUE'!F27 -> 0 | E39: ='OTHER REVENUE'!G27 -> 0 | F39: ='OTHER REVENUE'!H27 -> 0 | G39: ='OTHER REVENUE'!I27 -> 1 | H39: 1
A40: P | B40: Production | C40: ='FORM 1'!C13 -> 1 | D40: ='FORM 1'!D13 -> 0 | E40: ='FORM 1'!E13 -> 0 | F40: ='FORM 1'!F13 -> 0 | G40: ='FORM 1'!G13 -> 0 | H40: 1
A41: SCHMA | B41: Schedule M Additions | C41: ='SCH M'!F65 -> 0.4928427801 | D41: ='SCH M'!G65 -> 0.1984526396 | E41: ='SCH M'!H65 -> 0.2960096213 | F41: ='SCH M'!I65 -> 0.00985072244 | G41: ='SCH M'!J65 -> 0.002844236541 | H41: 1
A42: SCHMAF | B42: Schedule M Additions - Flow Through | C42: 1 | D42: 0 | E42: 0 | F42: 0 | G42: 0 | H42: 1
A43: SCHMAP | B43: Schedule M Additions - Permanent | C43: ='SCH M'!F16 -> 0.8990511436 | D43: ='SCH M'!G16 -> 0.01633694317 | E43: ='SCH M'!H16 -> 0.05892021031 | F43: ='SCH M'!I16 -> 0.02569170296 | G43: ='SCH M'!J16 -> 0 | H43: 1
A44: SCHMAP-SO | B44: Schedule M Additions - Permanent-SO | C44: ='SCH M'!F15 -> 1 | D44: ='SCH M'!G15 -> 0 | E44: ='SCH M'!H15 -> 0 | F44: ='SCH M'!I15 -> 0 | G44: ='SCH M'!J15 -> 0 | H44: 1
A45: SCHMAT | B45: Schedule M Additions - Temporary | C45: =+'SCH M'!F$57 -> 0.4926930061 | D45: =+'SCH M'!G$57 -> 0.1985197879 | E45: =+'SCH M'!H$57 -> 0.2960970391 | F45: =+'SCH M'!I$57 -> 0.009844881676 | G45: =+'SCH M'!J$57 -> 0.002845285246 | H45: =+'SCH M'!K$57 -> 0
A46: SCHMAT-GPS | B46: Schedule M Additions - Temporary-GPS | C46: 0 | D46: 0 | E46: 0 | F46: 0 | G46: 0 | H46: 0
A47: SCHMAT-SE | B47: Schedule M Additions - Temporary-SE | C47: ='SCH M'!F53 -> 0.999283185 | D47: ='SCH M'!G53 -> 0.0001160049407 | E47: ='SCH M'!H53 -> 0.0004183790951 | F47: ='SCH M'!I53 -> 0.0001824309754 | G47: ='SCH M'!J53 -> 0 | H47: 1
A48: SCHMAT-SITUS | B48: Schedule M Additions - Temporary-SITUS | C48: ='SCH M'!F55 -> 0.7995327017 | D48: ='SCH M'!G55 -> 0.0260335993 | E48: ='SCH M'!H55 -> 0.1309710777 | F48: ='SCH M'!I55 -> 0.04346262128 | G48: ='SCH M'!J55 -> 0 | H48: 1
A49: SCHMAT-SNP | B49: Schedule M Additions - Temporary-SNP | C49: ='SCH M'!F54 -> 0.4912720072 | D49: ='SCH M'!G54 -> 0.2436131342 | E49: ='SCH M'!H54 -> 0.2648961235 | F49: ='SCH M'!I54 -> 0.0002187350996 | G49: ='SCH M'!J54 -> 0 | H49: 1
A50: SCHMAT-SO | B50: Schedule M Additions - Temporary-SO | C50: ='SCH M'!F56 -> 0.4637300701 | D50: ='SCH M'!G56 -> 0.1017229087 | E50: ='SCH M'!H56 -> 0.3100489051 | F50: ='SCH M'!I56 -> 0.1244981162 | G50: ='SCH M'!J56 -> 0 | H50: 1
A51: SCHMD | B51: Schedule M Deductions | C51: =+'SCH M'!F$135 -> 0.4974415632 | D51: =+'SCH M'!G$135 -> 0.2173042348 | E51: =+'SCH M'!H$135 -> 0.2766907753 | F51: =+'SCH M'!I$135 -> 0.0104102476 | G51: =+'SCH M'!J$135 -> -0.001846820899 | H51: 1
A52: SCHMDF | B52: Schedule M Deductions - Flow Through | C52: 1 | D52: 0 | E52: 0 | F52: 0 | G52: 0 | H52: 1
A53: SCHMDP | B53: Schedule M Deductions - Permanent | C53: ='SCH M'!F77 -> 0.9991305454 | D53: ='SCH M'!G77 -> 0.0005222914855 | E53: ='SCH M'!H77 -> 0.0004320395517 | F53: ='SCH M'!I77 -> -8.487647438e-05 | G53: ='SCH M'!J77 -> 0 | H53: 1
A54: SCHMDP-SO | B54: Schedule M Deductions - Permanent- SO | C54: ='SCH M'!F76 ->  | D54: ='SCH M'!G76 ->  | E54: ='SCH M'!H76 ->  | F54: ='SCH M'!I76 ->  | G54: ='SCH M'!J76 ->  | H54: 0
A55: SCHMDT | B55: Schedule M Deductions - Temporary | C55: ='SCH M'!F128 -> 0.4861186514 | D55: ='SCH M'!G128 -> 0.2221969131 | E55: ='SCH M'!H128 -> 0.2829258201 | F55: ='SCH M'!I128 -> 0.01064711819 | G55: ='SCH M'!J128 -> -0.001888502879 | H55: 1
A56: SCHMDT-GPS | B56: Schedule M Deductions - Temporary-GPS | C56: ='SCH M'!F119 -> 0.4915374608 | D56: ='SCH M'!G119 -> 0.2435737778 | E56: ='SCH M'!H119 -> 0.2648887615 | F56: ='SCH M'!I119 -> 0 | G56: ='SCH M'!J119 -> 0 | H56: 1
A57: SCHMDT-SG | B57: Schedule M Deductions - Temporary-SG | C57: ='SCH M'!F121 -> 1.000725278 | D57: ='SCH M'!G121 -> -0.0007252783016 | E57: ='SCH M'!H121 -> 0 | F57: ='SCH M'!I121 -> 0 | G57: ='SCH M'!J121 -> 0 | H57: 1
A58: SCHMDT-SITUS | B58: Schedule M Deductions - Temporary-SITUS | C58: ='SCH M'!F127 -> 1.053483647 | D58: ='SCH M'!G127 -> -0.01649552967 | E58: ='SCH M'!H127 -> -0.03581226178 | F58: ='SCH M'!I127 -> -0.02926588207 | G58: ='SCH M'!J127 -> 0.02809002685 | H58: 1
A59: SCHMDT-SNP | B59: Schedule M Deductions - Temporary-SNP | C59: ='SCH M'!F123 -> 0.4915374608 | D59: ='SCH M'!G123 -> 0.2435737778 | E59: ='SCH M'!H123 -> 0.2648887615 | F59: ='SCH M'!I123 -> 0 | G59: ='SCH M'!J123 -> 0 | H59: 1
A60: SCHMDT-SO | B60: Schedule M Deductions - Temporary-SO | C60: ='SCH M'!F124 -> 0.4524189695 | D60: ='SCH M'!G124 -> 0.1113043425 | E60: ='SCH M'!H124 -> 0.3292755754 | F60: ='SCH M'!I124 -> 0.1070011126 | G60: ='SCH M'!J124 -> 0 | H60: 1
A61: T | B61: Transmission | C61: ='FORM 1'!C14 -> 0 | D61: ='FORM 1'!D14 -> 1 | E61: ='FORM 1'!E14 -> 0 | F61: ='FORM 1'!F14 -> 0 | G61: ='FORM 1'!G14 -> 0 | H61: =ROUND(SUM(C61:G61),4) -> 1
A62: TAXDEPR | B62: Tax Depreciation | C62: =+'TAX DEPR'!C$24 -> 0.4207111026 | D62: =+'TAX DEPR'!D$24 -> 0.254249406 | E62: =+'TAX DEPR'!E$24 -> 0.3179800656 | F62: =+'TAX DEPR'!F$24 -> 0.007059425834 | G62: =+'TAX DEPR'!G$24 -> 0 | H62: =ROUND(SUM(C62:G62),4) -> 1
A63: TD | B63: Transmission / Distribution | C63: ='FORM 1'!C18 -> 0 | D63: ='FORM 1'!D18 -> 0.4790397699 | E63: ='FORM 1'!E18 -> 0.5209602301 | F63: ='FORM 1'!F18 -> 0 | G63: ='FORM 1'!G18 -> 0 | H63: =ROUND(SUM(C63:G63),4) -> 1
A64: CWC | B64: Cash Working Capital | C64: 0.6791883942 | D64: 0.1047451495 | E64: 0.1024123676 | F64: 0.07161097562 | G64: 0.04204311307 | H64: 1
A65: DITEXP | B65: Deferred Income Tax - Expense | C65: 0 | D65: 0 | E65: 0 | F65: 0 | G65: 0 | H65: 1
A66: FIT | B66: Federal Income Taxes | C66: 0.4136885298 | D66: 0.2812405632 | E66: 0.2870802599 | F66: 0.01121382622 | G66: 0.006776820904 | H66: 1
A67: IBT | B67: Income Before Taxes | C67: 0.5468771745 | D67: 0.2173529346 | E67: 0.2218660646 | F67: 0.008666452695 | G67: 0.005237373635 | H67: 1
A68: NONE | B68: Not Functionalized | C68: 0 | D68: 0 | E68: 0 | F68: 0 | G68: 0 | H68: 0
A69: NUTIL | B69: Non-Utility | C69: 0 | D69: 0 | E69: 0 | F69: 0 | G69: 0 | H69: 0
A70: PT | B70: Production / Transmission | C70: 0.668603182 | D70: 0.331396818 | E70: 0 | F70: 0 | G70: 0 | H70: 1
A71: PTD | B71: Prod, Trans, Dist Plant | C71: 0.4918740091 | D71: 0.2438000385 | E71: 0.2643259525 | F71: 0 | G71: 0 | H71: 1
A72: REVREQ | B72: Revenue Requirement | C72: 0.626610917 | D72: 0.15100997 | E72: 0.147099338 | F72: 0.04823228852 | G72: 0.02704748645 | H72: 1
A73: SIT | B73: State Income Taxes | C73: 0.5468771745 | D73: 0.2173529346 | E73: 0.2218660646 | F73: 0.008666452695 | G73: 0.005237373635 | H73: 1

Sheet TAX DEPR
A1: =+'TOTAL FUNCFAC'!$A$1 -> PacifiCorp
A2: =+'TOTAL FUNCFAC'!A2 -> 12 Months Ended December 2016
A3: Tax Depreciation
B5: Total | C5: Production | D5: Transmission | E5: Distribution | F5: General | G5: Mining
A8: Total | B8: =SUM(C8:G8) -> 910819181 | C8: =348016209+54159-G8 -> 347403596 | D8: 208531903 | E8: 265593946 | F8: =93820388-5201627+4203 -> 88622964 | G8: =880139+100837+34412+78385-80846+16063-38885+12378-335711 -> 666772
A12: Conversion to COS Functions | B12: Total | C12: Pro | D12: Trn | E12: Dis | F12: Retail | G12: Misc
A14: Percent of GenPlant in Functions | B14: =SUM(C14:F14) -> 1 | C14: 0.3963010527 | D14: 0.2600153693 | E14: 0.2711305944 | F14: 0.07255298363 | G14: 0
A18: Allocation of GenPlant to Functions | B18: =SUM(C18:F18) -> 88622964 | C18: =+$F$8*C14 -> 35121373.93 | D18: =+$F$8*D14 -> 23043332.71 | E18: =+$F$8*E14 -> 24028396.9 | F18: =+$F$8*F14 -> 6429860.456 | G18: =+$F$8*G14 -> 0
A19: Assignment of Mining to Prod Function | B19: =SUM(C19:F19) -> 666772 | C19: =G8 -> 666772
A21: Adjusted Totals | B21: =SUM(C21:F21) -> 910819181 | C21: =+C8+C18+C19 -> 383191741.9 | D21: =+D8+D18+D19 -> 231575235.7 | E21: =+E8+E18+E19 -> 289622342.9 | F21: =+F18+F19 -> 6429860.456 | G21: =+G18+G19 -> 0
A24: TAXDEPR FACTOR | B24: =SUM(C24:F24) -> 1 | C24: =+C21/$B$21 -> 0.4207111026 | D24: =+D21/$B$21 -> 0.254249406 | E24: =+E21/$B$21 -> 0.3179800656 | F24: =+F21/$B$21 -> 0.007059425834 | G24: =+G21/$B$21 -> 0
A330: TAXDEPR Factor | C330: =#REF!/#REF! ->  | D330: =#REF!/#REF! ->  | E330: =#REF!/#REF! ->  | F330: =#REF!/#REF! ->  | G330: =#REF!/#REF! -> 

Sheet GROSS PLANT
A2: =+'TOTAL FUNCFAC'!A2 -> 12 Months Ended December 2016
A3: Gross Plant
A4: (In 000's)
B6: Alloc.
A7: Description | B7: Factor | C7: Funct. | D7: Amount | E7: Production | F7: Transmisssion | G7: DPW | H7: CUSTOMER | I7: DMISC
A9: Production Plant | C9: P | D9: 12212509.34 | E9: =$D9*VLOOKUP(+$C9,$C$45:$I$51,3) -> 12212509.34 | F9: =$D9*VLOOKUP(+$C9,$C$45:$I$51,4) -> 0 | G9: =$D9*VLOOKUP(+$C9,$C$45:$I$51,5) -> 0 | H9: =$D9*VLOOKUP(+$C9,$C$45:$I$51,6) -> 0 | I9: =$D9*VLOOKUP(+$C9,$C$45:$I$51,7) -> 0
A10: Transmission Plant | C10: T | D10: 6051719.907 | E10: =$D10*VLOOKUP(+$C10,$C$45:$I$51,3) -> 0 | F10: =$D10*VLOOKUP(+$C10,$C$45:$I$51,4) -> 6051719.907 | G10: =$D10*VLOOKUP(+$C10,$C$45:$I$51,5) -> 0 | H10: =$D10*VLOOKUP(+$C10,$C$45:$I$51,6) -> 0 | I10: =$D10*VLOOKUP(+$C10,$C$45:$I$51,7) -> 0
A11: Distribution Plant | C11: DPW | D11: 6581302 | E11: =$D11*VLOOKUP(+$C11,$C$45:$I$51,3) -> 0 | F11: =$D11*VLOOKUP(+$C11,$C$45:$I$51,4) -> 0 | G11: =$D11*VLOOKUP(+$C11,$C$45:$I$51,5) -> 6581302 | H11: =$D11*VLOOKUP(+$C11,$C$45:$I$51,6) -> 0 | I11: =$D11*VLOOKUP(+$C11,$C$45:$I$51,7) -> 0
A12: Mining | B12: SE | C12: P | D12: =1854.828+161602.075+8385.398 -> 171842.301 | E12: =$D12*VLOOKUP(+$C12,$C$45:$I$51,3) -> 171842.301 | F12: =$D12*VLOOKUP(+$C12,$C$45:$I$51,4) -> 0 | G12: =$D12*VLOOKUP(+$C12,$C$45:$I$51,5) -> 0 | H12: =$D12*VLOOKUP(+$C12,$C$45:$I$51,6) -> 0 | I12: =$D12*VLOOKUP(+$C12,$C$45:$I$51,7) -> 0
A13: General Plant
A14: Business Centers | B14: ='GENERAL PLANT'!B7 -> CN | C14: ='GENERAL PLANT'!C7 -> CUST | D14: ='GENERAL PLANT'!D7 -> 19276.11282 | E14: =$D14*VLOOKUP(+$C14,$C$45:$I$51,3) -> 0 | F14: =$D14*VLOOKUP(+$C14,$C$45:$I$51,4) -> 0 | G14: =$D14*VLOOKUP(+$C14,$C$45:$I$51,5) -> 0 | H14: =$D14*VLOOKUP(+$C14,$C$45:$I$51,6) -> 19276.11282 | I14: =$D14*VLOOKUP(+$C14,$C$45:$I$51,7) -> 0
A15: Utah Mine | B15: ='GENERAL PLANT'!B8 -> SE | C15: ='GENERAL PLANT'!C8 -> P | D15: ='GENERAL PLANT'!D8 -> 5385.99183 | E15: =$D15*VLOOKUP(+$C15,$C$45:$I$51,3) -> 5385.99183 | F15: 0 | G15: 0 | H15: 0 | I15: 0
B16: ='GENERAL PLANT'!B9 -> SG | C16: ='GENERAL PLANT'!C9 -> P | D16: ='GENERAL PLANT'!D9 -> 118117.2751 | E16: =$D16*VLOOKUP(+$C16,$C$45:$I$51,3) -> 118117.2751 | F16: 0 | G16: 0 | H16: 0 | I16: 0
B17: ='GENERAL PLANT'!B10 -> SG | C17: ='GENERAL PLANT'!C10 -> T | D17: ='GENERAL PLANT'!D10 -> 158236.549 | E17: =$D17*VLOOKUP(+$C17,$C$45:$I$51,3) -> 0 | F17: 158236.549 | G17: 0 | H17: 0 | I17: 0
B18: ='GENERAL PLANT'!B12 -> SO | C18: ='GENERAL PLANT'!C12 -> DPW | D18: ='GENERAL PLANT'!D12 -> 0 | E18: 0 | F18: 0 | G18: 0 | H18: 0 | I18: 0
B19: ='GENERAL PLANT'!B17 -> SG | C19: ='GENERAL PLANT'!C17 -> DPW | D19: ='GENERAL PLANT'!D17 -> 0 | E19: 0 | F19: 0 | G19: 0 | H19: 0 | I19: 0
B20: ='GENERAL PLANT'!B18 -> SG | C20: ='GENERAL PLANT'!C18 -> P | D20: ='GENERAL PLANT'!D18 -> 0 | E20: 0 | F20: 0 | G20: 0 | H20: 0 | I20: 0
A21: General Plant | B21: ='GENERAL PLANT'!B19 -> SITUS | C21: ='GENERAL PLANT'!C19 -> DPW | D21: ='GENERAL PLANT'!D19 -> 208267.0321 | E21: 0 | F21: 0 | G21: 208267.0321 | H21: 0 | I21: 0
A22: General Plant | B22: ='GENERAL PLANT'!B20 -> SITUS | C22: ='GENERAL PLANT'!C20 -> P | D22: ='GENERAL PLANT'!D20 -> 0 | E22: 0 | F22: 0 | G22: 0 | H22: 0 | I22: 0
A23: General Plant | B23: ='GENERAL PLANT'!B21 -> SITUS | C23: ='GENERAL PLANT'!C21 -> TD | D23: ='GENERAL PLANT'!D21 -> 387943.8288 | E23: 0 | F23: 185840.5225 | G23: 202103.3063 | H23: 0 | I23: 0
A24: Total General Plant | D24: =SUBTOTAL(9,D14:D23) -> 897226.7896 | E24: 123503.2669 | F24: 344077.0714 | G24: 410370.3384 | H24: 19276.11282 | I24: 0
A26: Intangible Plant
A27: Customer Service Sys | B27: ='INTANGIBLE PLANT'!A7 -> CN | C27: ='INTANGIBLE PLANT'!B7 -> CUST | D27: ='INTANGIBLE PLANT'!C7 -> 142708.8297 | E27: =$D27*VLOOKUP(+$C27,$C$45:$I$52,3) -> 0 | F27: =$D27*VLOOKUP(+$C27,$C$45:$I$52,4) -> 0 | G27: =$D27*VLOOKUP(+$C27,$C$45:$I$52,5) -> 0 | H27: =$D27*VLOOKUP(+$C27,$C$45:$I$52,6) -> 142708.8297 | I27: =$D27*VLOOKUP(+$C27,$C$45:$I$52,7) -> 0
A28: Customer Service Sys | B28: ='INTANGIBLE PLANT'!A8 -> SE | C28: ='INTANGIBLE PLANT'!B8 -> P | D28: ='INTANGIBLE PLANT'!C8 -> 23.2996 | E28: 23.2996 | F28: 0 | G28: 0 | H28: 0 | I28: 0
A29: Washington Hydro | B29: ='INTANGIBLE PLANT'!A9 -> SG | C29: ='INTANGIBLE PLANT'!B9 -> P | D29: ='INTANGIBLE PLANT'!C9 -> 104841.1247 | E29: 104841.1247 | F29: 0 | G29: 0 | H29: 0 | I29: 0
A30: Utah Hydro | B30: ='INTANGIBLE PLANT'!A10 -> SG | C30: ='INTANGIBLE PLANT'!B10 -> T | D30: ='INTANGIBLE PLANT'!C10 -> 57403.92112 | E30: 0 | F30: 57403.92112 | G30: 0 | H30: 0 | I30: 0
A31: Colorado Steam-UPD | B31: ='INTANGIBLE PLANT'!A11 -> SG | C31: ='INTANGIBLE PLANT'!B11 -> P | D31: ='INTANGIBLE PLANT'!C11 -> 172821.2447 | E31: 172821.2447 | F31: 0 | G31: 0 | H31: 0 | I31: 0
B32: ='INTANGIBLE PLANT'!A12 -> SG | C32: ='INTANGIBLE PLANT'!B12 -> P | D32: ='INTANGIBLE PLANT'!C12 -> 9790.35601 | E32: 9790.35601 | F32: 0 | G32: 0 | H32: 0 | I32: 0
A33: Oregon Trans | B33: ='INTANGIBLE PLANT'!A15 -> SO | C33: ='INTANGIBLE PLANT'!B15 -> P | D33: ='INTANGIBLE PLANT'!C15 -> 27404.39995 | E33: 27404.39995 | F33: 0 | G33: 0 | H33: 0 | I33: 0
A34: Utah Mine | B34: ='INTANGIBLE PLANT'!A16 -> SO | C34: ='INTANGIBLE PLANT'!B16 -> PTD | D34: ='INTANGIBLE PLANT'!C16 -> 256403.1834 | E34: 126031.7697 | F34: 62453.09201 | G34: 67918.32168 | H34: 0 | I34: 0
A35: Utah | B35: ='INTANGIBLE PLANT'!A18 -> SO | C35: ='INTANGIBLE PLANT'!B18 -> TD | D35: ='INTANGIBLE PLANT'!C18 -> 41519.13761 | E35: 0 | F35: 19889.31813 | G35: 21629.81948 | H35: 0 | I35: 0
A36: Utah G/O | B36: ='INTANGIBLE PLANT'!A19 -> SO | C36: ='INTANGIBLE PLANT'!B19 -> LABOR | D36: ='INTANGIBLE PLANT'!C19 -> 0 | E36: =$D36*VLOOKUP(+$C36,$C$45:$I$52,3) -> 0 | F36: 0 | G36: 0 | H36: 0 | I36: 0
A37: Utah G/O | B37: ='INTANGIBLE PLANT'!A25 -> SITUS | C37: ='INTANGIBLE PLANT'!B25 -> TD | D37: ='INTANGIBLE PLANT'!C25 -> 15816.26415 | E37: 0 | F37: 7576.619539 | G37: 8239.644611 | H37: 0 | I37: 0
A38: Total Intangible Plant | D38: =SUBTOTAL(9,D27:D37) -> 828731.7609 | E38: 440912.1946 | F38: 147322.9508 | G38: 97787.78577 | H38: 142708.8297 | I38: 0
A40: Total Gross Plant | D40: =SUBTOTAL(9,D8:D38) -> 26743332.1 | E40: 12948767.1 | F40: 6543119.929 | G40: 7089460.124 | H40: 161984.9425 | I40: 0
B42: GP Factor | D42: =SUM(E42:I42) -> 1 | E42: =E40/$D40 -> 0.4841867519 | F42: =F40/$D40 -> 0.2446636008 | G42: =G40/$D40 -> 0.2650926256 | H42: =H40/$D40 -> 0.006057021687 | I42: =I40/$D40 -> 0
B45: Functional Allocators: | E45: Prod | F45: Trans | G45: DPW | H45: CUST | I45: DMISC
C46: P | D46: =SUM(E46:F46) -> 1 | E46: ='FORM 1'!$C$13 -> 1 | F46: ='FORM 1'!$D$13 -> 0 | G46: ='FORM 1'!$E$13 -> 0 | H46: ='FORM 1'!$F$13 -> 0 | I46: ='FORM 1'!$G$13 -> 0
C47: T | D47: =SUM(E47:F47) -> 1 | E47: ='FORM 1'!$C$14 -> 0 | F47: ='FORM 1'!$D$14 -> 1 | G47: ='FORM 1'!$E$14 -> 0 | H47: ='FORM 1'!$F$14 -> 0 | I47: ='FORM 1'!$G$14 -> 0
C48: TD | D48: =SUM(E48:I48) -> 1 | E48: ='FORM 1'!$C$18 -> 0 | F48: ='FORM 1'!$D$18 -> 0.4790397699 | G48: ='FORM 1'!$E$18 -> 0.5209602301 | H48: ='FORM 1'!$F$18 -> 0 | I48: ='FORM 1'!$G$18 -> 0
C49: CUST | D49: =SUM(E49:I49) -> 1 | E49: 0 | F49: 0 | G49: 0 | H49: 1 | I49: 0
C50: DPW | D50: =SUM(E50:I50) -> 1 | E50: 0 | F50: 0 | G50: 1 | H50: 0 | I50: 0
C51: PTD | D51: =SUM(E51:I51) -> 1 | E51: ='FORM 1'!$C$16 -> 0.4915374608 | F51: ='FORM 1'!$D$16 -> 0.2435737778 | G51: ='FORM 1'!$E$16 -> 0.2648887615 | H51: ='FORM 1'!$F$16 -> 0 | I51: ='FORM 1'!$G$16 -> 0
C52: LABOR | D52: =SUM(E52:I52) -> 1 | E52: ='SCH M'!F146 -> 0.4608921071 | F52: ='SCH M'!G146 -> 0.08724591166 | G52: ='SCH M'!H146 -> 0.314657853 | H52: ='SCH M'!I146 -> 0.1372041283 | I52: ='SCH M'!J146 -> 0

Sheet FORM 1
A1: =+'TOTAL FUNCFAC'!A1 -> PacifiCorp
A2: 12 Months Ended December 2016
A3: FERC FORM 1 Funtionalization Factors
A6: Factor | B6: Total | C6: Production | D6: Transmission | E6: DPW | F6: CUST | G6: DMSC
A8: PLANT | B8: =SUM(C8:G8) -> 24845531.25 | C8: =+'GROSS PLANT'!D9 -> 12212509.34 | D8: =+'GROSS PLANT'!D10 -> 6051719.907 | E8: =+'GROSS PLANT'!D11 -> 6581302 | F8: 0 | G8: 0
A9: UNCLASSIFIED PLANT | B9: =SUM(C9:G9) -> 0 | F9: 0 | G9: 0
A10: TOTAL PLANT | B10: =SUM(C10:G10) -> 24845531.25 | C10: =C8+C9 -> 12212509.34 | D10: =D8+D9 -> 6051719.907 | E10: =E8+E9 -> 6581302 | F10: 0 | G10: 0
A12: PLANT %
A13: P | B13: =SUM(C13:G13) -> 1 | C13: =C10/C10 -> 1
A14: T | B14: 1 | D14: =D10/D10 -> 1
A15: DPW | B15: 1 | E15: =E10/E10 -> 1
A16: PTD | B16: 1 | C16: =C10/$B10 -> 0.4915374608 | D16: =D10/$B10 -> 0.2435737778 | E16: =E10/$B10 -> 0.2648887615 | F16: =F10/$B10 -> 0 | G16: =G10/$B10 -> 0
A17: PT | B17: 1 | C17: =C10/(C10+D10) -> 0.6686572521 | D17: =D10/(C10+D10) -> 0.3313427479
A18: TD | B18: 1 | D18: =D10/(D10+E10) -> 0.4790397699 | E18: =E10/(D10+E10) -> 0.5209602301
A23: LABOR | B23: =SUM(C23:G23) -> 312813248 | C23: 144173157 | D23: 27291677 | E23: 98429145 | F23: =36465651+6453618 -> 42919269 | G23: 0
A25: LABOR % | B25: =B23/$B23 -> 1 | C25: =C23/$B23 -> 0.4608921071 | D25: =D23/$B23 -> 0.08724591166 | E25: =E23/$B23 -> 0.314657853 | F25: =F23/$B23 -> 0.1372041283 | G25: =G23/$B23 -> 0
A30: Material & Supplies | B30: =SUM(C30:G30) -> 85951678 | C30: 73437874 | D30: 715287 | E30: 11798517 | F30: 0 | G30: 0
A32: Material & Supplies % | B32: =B30/$B30 -> 1 | C32: 0.8544088459 | D32: 0.008321966675 | E32: 0.1372691875 | F32: 0 | G32: 0
A37: FERC (mWh) | B37: 25979868 | C37: =B37-D37 -> 12858723 | D37: 13121145 | E37: 0 | F37: 0 | G37: 0
A39: FERC % | B39: =B37/$B37 -> 1 | C39: =C37/$B37 -> 0.4949495124 | D39: =D37/$B37 -> 0.5050504876 | E39: 0 | F39: 0 | G39: 0

Sheet BOOKDPR
A1: =+'TOTAL FUNCFAC'!$A$1 -> PacifiCorp
A2: =+'TOTAL FUNCFAC'!A2 -> 12 Months Ended December 2016
A3: Depreciation Expense
A6: Function | B6: Amount | C6: Production | D6: Transmission | E6: DPW | F6: CUST | G6: DMSC
A7: CUST | B7: 1228.40732 | C7: =VLOOKUP($A7,$A$16:$G$22,3,FALSE)*$B7 -> 0 | D7: =VLOOKUP($A7,$A$16:$G$22,4,FALSE)*$B7 -> 0 | E7: =VLOOKUP($A7,$A$16:$G$22,5,FALSE)*$B7 -> 0 | F7: =VLOOKUP($A7,$A$16:$G$22,6,FALSE)*$B7 -> 1228.40732 | G7: =VLOOKUP($A7,$A$16:$G$22,7,FALSE)*$B7 -> 0
A8: DPW | B8: 144013.757 | C8: =VLOOKUP($A8,$A$16:$G$22,3,FALSE)*$B8 -> 0 | D8: =VLOOKUP($A8,$A$16:$G$22,4,FALSE)*$B8 -> 0 | E8: =VLOOKUP($A8,$A$16:$G$22,5,FALSE)*$B8 -> 144013.757 | F8: =VLOOKUP($A8,$A$16:$G$22,6,FALSE)*$B8 -> 0 | G8: =VLOOKUP($A8,$A$16:$G$22,7,FALSE)*$B8 -> 0
A9: P | B9: 397689.5573 | C9: =VLOOKUP($A9,$A$16:$G$22,3,FALSE)*$B9 -> 397689.5573 | D9: =VLOOKUP($A9,$A$16:$G$22,4,FALSE)*$B9 -> 0 | E9: =VLOOKUP($A9,$A$16:$G$22,5,FALSE)*$B9 -> 0 | F9: =VLOOKUP($A9,$A$16:$G$22,6,FALSE)*$B9 -> 0 | G9: =VLOOKUP($A9,$A$16:$G$22,7,FALSE)*$B9 -> 0
A10: PTD | B10: 14159.44556 | C10: =VLOOKUP($A10,$A$16:$G$22,3,FALSE)*$B10 -> 6959.897916 | D10: =VLOOKUP($A10,$A$16:$G$22,4,FALSE)*$B10 -> 3448.869646 | E10: =VLOOKUP($A10,$A$16:$G$22,5,FALSE)*$B10 -> 3750.677997 | F10: =VLOOKUP($A10,$A$16:$G$22,6,FALSE)*$B10 -> 0 | G10: =VLOOKUP($A10,$A$16:$G$22,7,FALSE)*$B10 -> 0
A11: T | B11: 104351.3744 | C11: =VLOOKUP($A11,$A$16:$G$22,3,FALSE)*$B11 -> 0 | D11: =VLOOKUP($A11,$A$16:$G$22,4,FALSE)*$B11 -> 104351.3744 | E11: =VLOOKUP($A11,$A$16:$G$22,5,FALSE)*$B11 -> 0 | F11: =VLOOKUP($A11,$A$16:$G$22,6,FALSE)*$B11 -> 0 | G11: =VLOOKUP($A11,$A$16:$G$22,7,FALSE)*$B11 -> 0
A12: Book Depreciation | B12: =SUM(B7:B11) -> 661442.5416 | C12: 404649.4552 | D12: 107800.244 | E12: 147764.435 | F12: 1228.40732 | G12: 0
A13: BookDepr Factor | B13: =B12/$B12 -> 1 | C13: 0.6117681126 | D13: 0.1629774882 | E13: 0.2233972351 | F13: 0.001857164066 | G13: 0
A16: P | B16: ='FORM 1'!$B$13 -> 1 | C16: ='FORM 1'!$C$13 -> 1 | D16: ='FORM 1'!$D$13 -> 0 | E16: ='FORM 1'!$E$13 -> 0 | F16: ='FORM 1'!$F$13 -> 0 | G16: ='FORM 1'!$G$13 -> 0
A17: T | B17: ='FORM 1'!$B$14 -> 1 | C17: ='FORM 1'!$C$14 -> 0 | D17: ='FORM 1'!$D$14 -> 1 | E17: ='FORM 1'!$E$14 -> 0 | F17: ='FORM 1'!$F$14 -> 0 | G17: ='FORM 1'!$G$14 -> 0
A18: DPW | B18: ='FORM 1'!$B$15 -> 1 | C18: ='FORM 1'!$C$15 -> 0 | D18: ='FORM 1'!$D$15 -> 0 | E18: ='FORM 1'!$E$15 -> 1 | F18: ='FORM 1'!$F$15 -> 0 | G18: ='FORM 1'!$G$15 -> 0
A19: CUST | B19: ='FORM 1'!$B$15 -> 1 | C19: 0 | D19: 0 | E19: 0 | F19: 1 | G19: 0
A20: PTD | B20: ='FORM 1'!$B$16 -> 1 | C20: ='FORM 1'!$C$16 -> 0.4915374608 | D20: ='FORM 1'!$D$16 -> 0.2435737778 | E20: ='FORM 1'!$E$16 -> 0.2648887615 | F20: ='FORM 1'!$F$16 -> 0 | G20: ='FORM 1'!$G$16 -> 0
A21: TD | B21: ='FORM 1'!$B$18 -> 1 | C21: ='FORM 1'!$C$18 -> 0 | D21: ='FORM 1'!$D$18 -> 0.4790397699 | E21: ='FORM 1'!$E$18 -> 0.5209602301 | F21: ='FORM 1'!$F$18 -> 0 | G21: ='FORM 1'!$G$18 -> 0
A22: G | B22: ='GENERAL PLANT'!$D$38 -> 1 | C22: ='GENERAL PLANT'!$E$38 -> 0.2191348442 | D22: ='GENERAL PLANT'!$F$38 -> 0.3512730285 | E22: ='GENERAL PLANT'!$G$38 -> 0.413054876 | F22: ='GENERAL PLANT'!$H$38 -> 0.01653725132 | G22: ='GENERAL PLANT'!$I$38 -> 0

Sheet OTHER REVENUE
A1: =+'TOTAL FUNCFAC'!A1 -> PacifiCorp
A2: =+'TOTAL FUNCFAC'!A2:A2 -> 12 Months Ended December 2016
A3: Account 456
A5: Main
A6: Account | B6: Factor | C6: Function | D6: Amount | E6: Production | F6: Transmission | G6: DPW | H6: Customer | I6: DMSC
A7: 456 | B7: OTHER | C7: P | D7: -501.2796 | E7: =$D7*VLOOKUP(+$C7,$C$31:$I37,3,FALSE) -> -501.2796 | F7: =$D7*VLOOKUP(+$C7,$C$31:$I37,4,FALSE) -> 0 | G7: =$D7*VLOOKUP(+$C7,$C$31:$I37,5,FALSE) -> 0 | H7: =$D7*VLOOKUP(+$C7,$C$31:$I37,6,FALSE) -> 0 | I7: =$D7*VLOOKUP(+$C7,$C$31:$I37,7,FALSE) -> 0
A8: 456 | B8: OTHER | C8: T | D8: 0 | E8: =$D8*VLOOKUP(+$C8,$C$31:$I38,3,FALSE) -> 0 | F8: =$D8*VLOOKUP(+$C8,$C$31:$I38,4,FALSE) -> 0 | G8: =$D8*VLOOKUP(+$C8,$C$31:$I38,5,FALSE) -> 0 | H8: =$D8*VLOOKUP(+$C8,$C$31:$I38,6,FALSE) -> 0 | I8: =$D8*VLOOKUP(+$C8,$C$31:$I38,7,FALSE) -> 0
A9: 456 | B9: SE | C9: P | D9: 0 | E9: =$D9*VLOOKUP(+$C9,$C$31:$I38,3,FALSE) -> 0 | F9: =$D9*VLOOKUP(+$C9,$C$31:$I38,4,FALSE) -> 0 | G9: =$D9*VLOOKUP(+$C9,$C$31:$I38,5,FALSE) -> 0 | H9: =$D9*VLOOKUP(+$C9,$C$31:$I38,6,FALSE) -> 0 | I9: =$D9*VLOOKUP(+$C9,$C$31:$I38,7,FALSE) -> 0
A10: 456 | B10: SE | C10: T | D10: -7481.06572 | E10: =$D10*VLOOKUP(+$C10,$C$31:$I39,3,FALSE) -> 0 | F10: =$D10*VLOOKUP(+$C10,$C$31:$I39,4,FALSE) -> -7481.06572 | G10: =$D10*VLOOKUP(+$C10,$C$31:$I39,5,FALSE) -> 0 | H10: =$D10*VLOOKUP(+$C10,$C$31:$I39,6,FALSE) -> 0 | I10: =$D10*VLOOKUP(+$C10,$C$31:$I39,7,FALSE) -> 0
A11: 456 | B11: SG | C11: P | D11: -27112.07413 | E11: =$D11*VLOOKUP(+$C11,$C$31:$I40,3,FALSE) -> -27112.07413 | F11: =$D11*VLOOKUP(+$C11,$C$31:$I40,4,FALSE) -> 0 | G11: =$D11*VLOOKUP(+$C11,$C$31:$I40,5,FALSE) -> 0 | H11: =$D11*VLOOKUP(+$C11,$C$31:$I40,6,FALSE) -> 0 | I11: =$D11*VLOOKUP(+$C11,$C$31:$I40,7,FALSE) -> 0
A12: 456 | B12: SG | C12: T | D12: -93697.2268 | E12: =$D12*VLOOKUP(+$C12,$C$31:$I40,3,FALSE) -> 0 | F12: =$D12*VLOOKUP(+$C12,$C$31:$I40,4,FALSE) -> -93697.2268 | G12: =$D12*VLOOKUP(+$C12,$C$31:$I40,5,FALSE) -> 0 | H12: =$D12*VLOOKUP(+$C12,$C$31:$I40,6,FALSE) -> 0 | I12: =$D12*VLOOKUP(+$C12,$C$31:$I40,7,FALSE) -> 0
A13: 456 | B13: SO | C13: DMSC | D13: -1302.49914 | E13: =$D13*VLOOKUP(+$C13,$C$31:$I41,3,FALSE) -> 0 | F13: =$D13*VLOOKUP(+$C13,$C$31:$I41,4,FALSE) -> 0 | G13: =$D13*VLOOKUP(+$C13,$C$31:$I41,5,FALSE) -> 0 | H13: =$D13*VLOOKUP(+$C13,$C$31:$I41,6,FALSE) -> 0 | I13: =$D13*VLOOKUP(+$C13,$C$31:$I41,7,FALSE) -> -1302.49914
A14: 456 | B14: SITUS | C14: DMSC | D14: 1534.00803 | E14: =$D14*VLOOKUP(+$C14,$C$31:$I42,3,FALSE) -> 0 | F14: =$D14*VLOOKUP(+$C14,$C$31:$I42,4,FALSE) -> 0 | G14: =$D14*VLOOKUP(+$C14,$C$31:$I42,5,FALSE) -> 0 | H14: =$D14*VLOOKUP(+$C14,$C$31:$I42,6,FALSE) -> 0 | I14: =$D14*VLOOKUP(+$C14,$C$31:$I42,7,FALSE) -> 1534.00803
A15: 456 | B15: SITUS | C15: P | D15: -322.9516 | E15: =$D15*VLOOKUP(+$C15,$C$31:$I43,3,FALSE) -> -322.9516 | F15: =$D15*VLOOKUP(+$C15,$C$31:$I43,4,FALSE) -> 0 | G15: =$D15*VLOOKUP(+$C15,$C$31:$I43,5,FALSE) -> 0 | H15: =$D15*VLOOKUP(+$C15,$C$31:$I43,6,FALSE) -> 0 | I15: =$D15*VLOOKUP(+$C15,$C$31:$I43,7,FALSE) -> 0
A16: 456 | B16: SITUS | C16: T | D16: 7093.95986 | E16: =$D16*VLOOKUP(+$C16,$C$31:$I44,3,FALSE) -> 0 | F16: =$D16*VLOOKUP(+$C16,$C$31:$I44,4,FALSE) -> 7093.95986 | G16: =$D16*VLOOKUP(+$C16,$C$31:$I44,5,FALSE) -> 0 | H16: =$D16*VLOOKUP(+$C16,$C$31:$I44,6,FALSE) -> 0 | I16: =$D16*VLOOKUP(+$C16,$C$31:$I44,7,FALSE) -> 0
A17: Total Situs Revenues | D17: =SUMIF($B:$B,"SITUS",D:D) -> 8305.01629 | E17: -322.9516 | F17: 7093.95986 | G17: 0 | H17: 0 | I17: 1534.00803
A18: Total CN Revenues | D18: =SUMIF($B:$B,"CN",D:D) -> 0 | E18: 0 | F18: 0 | G18: 0 | H18: 0 | I18: 0
A19: Total SE Revenues | D19: =SUMIF($B:$B,"SE",D:D) -> -7481.06572 | E19: 0 | F19: -7481.06572 | G19: 0 | H19: 0 | I19: 0
A20: Total SG Revenues | D20: =SUMIF($B:$B,"SG",D:D) -> -120809.3009 | E20: -27112.07413 | F20: -93697.2268 | G20: 0 | H20: 0 | I20: 0
A21: Total SO Revenues | D21: =SUMIF($B:$B,"SO",D:D) -> -1302.49914 | E21: 0 | F21: 0 | G21: 0 | H21: 0 | I21: -1302.49914
A22: Total Operation | D22: =SUM(D7:D16) -> -121789.1291 | E22: -27936.30533 | F22: -94084.33266 | G22: 0 | H22: 0 | I22: 231.50889
A23: OTHSITUS | D23: =SUM(E23:I23) -> 1 | E23: =E17/$D$17 -> -0.03888632951 | F23: =F17/$D$17 -> 0.8541777177 | G23: =G17/$D$17 -> 0 | H23: =H17/$D$17 -> 0 | I23: =I17/$D$17 -> 0.1847086118
A24: CN Factor | D24: 0 | E24: =IF(ISERROR(E18/$D$18)," ",(E18/$D$18)) ->  | F24: =IF(ISERROR(F18/$D$18)," ",(F18/$D$18)) ->  | G24: =IF(ISERROR(G18/$D$18)," ",(G18/$D$18)) ->  | H24: =IF(ISERROR(H18/$D$18)," ",(H18/$D$18)) ->  | I24: =IF(ISERROR(I18/$D$18)," ",(I18/$D$18)) -> 
A25: OTHSE | D25: 1 | E25: =E19/$D$19 -> 0 | F25: =F19/$D$19 -> 1 | G25: =G19/$D$19 -> 0 | H25: =H19/$D$19 -> 0 | I25: =I19/$D$19 -> 0
A26: OTHSG | D26: 1 | E26: =E20/$D$20 -> 0.2244204206 | F26: =F20/$D$20 -> 0.7755795794 | G26: =G20/$D$20 -> 0 | H26: =H20/$D$20 -> 0 | I26: =I20/$D$20 -> 0
A27: OTHSO | D27: 1 | E27: =E21/$D$21 -> 0 | F27: =F21/$D$21 -> 0 | G27: =G21/$D$21 -> 0 | H27: =H21/$D$21 -> 0 | I27: =I21/$D$21 -> 1
A28: Total Operation Factor | D28: 1 | E28: =E22/$D$22 -> 0.2293825856 | F28: =F22/$D$22 -> 0.7725183139 | G28: =G22/$D$22 -> 0 | H28: =H22/$D$22 -> 0 | I28: =I22/$D$22 -> -0.001900899462
D30: Total | E30: Prod | F30: Trans | G30: DPW | H30: CUST | I30: DMSC
C31: P | D31: =SUM(E31:I31) -> 1 | E31: ='FORM 1'!$C$13 -> 1 | F31: ='FORM 1'!$D$13 -> 0 | G31: ='FORM 1'!$E$13 -> 0 | H31: ='FORM 1'!$F$13 -> 0 | I31: ='FORM 1'!$G$13 -> 0
C32: T | D32: =SUM(E32:I32) -> 1 | E32: ='FORM 1'!$C$14 -> 0 | F32: ='FORM 1'!$D$14 -> 1 | G32: ='FORM 1'!$E$14 -> 0 | H32: ='FORM 1'!$F$14 -> 0 | I32: ='FORM 1'!$G$14 -> 0
C33: TD | D33: 1 | E33: ='FORM 1'!$C$18 -> 0 | F33: ='FORM 1'!$D$18 -> 0.4790397699 | G33: ='FORM 1'!$E$18 -> 0.5209602301 | H33: ='FORM 1'!$F$18 -> 0 | I33: ='FORM 1'!$G$18 -> 0
C34: CUST | D34: 1 | E34: 0 | F34: 0 | G34: 0 | H34: 1 | I34: 0
C35: DPW | D35: 1 | E35: 0 | F35: 0 | G35: 1 | H35: 0 | I35: 0
C36: PTD | D36: 1 | E36: ='FORM 1'!$C$16 -> 0.4915374608 | F36: ='FORM 1'!$D$16 -> 0.2435737778 | G36: ='FORM 1'!$E$16 -> 0.2648887615 | H36: ='FORM 1'!$F$16 -> 0 | I36: ='FORM 1'!$G$16 -> 0
C37: DMSC | D37: 1 | E37: 0 | F37: 0 | G37: 0 | H37: 0 | I37: 1

Sheet GENERAL PLANT
A1: =+'TOTAL FUNCFAC'!$A$1 -> PacifiCorp
A2: =+'TOTAL FUNCFAC'!A2 -> 12 Months Ended December 2016
A3: General Plant
B5: Alloc.
A6: Description | B6: Factor | C6: Funct. | D6: Amount | E6: Prod | F6: Trans | G6: DPW | H6: CUST | I6: DMSC
A7: Business Centers | B7: CN | C7: CUST | D7: 19276.11282 | E7: =$D7*VLOOKUP(+$C7,$B$45:$H$51,3) -> 0 | F7: =$D7*VLOOKUP(+$C7,$B$45:$H$51,4) -> 0 | G7: =$D7*VLOOKUP(+$C7,$B$45:$H$51,5) -> 0 | H7: =$D7*VLOOKUP(+$C7,$B$45:$H$51,6) -> 19276.11282 | I7: =$D7*VLOOKUP(+$C7,$B$45:$H$51,7) -> 0
B8: SE | C8: P | D8: 5385.99183 | E8: 5385.99183 | F8: 0 | G8: 0 | H8: 0 | I8: 0
B9: SG | C9: P | D9: 118117.2751 | E9: 118117.2751 | F9: 0 | G9: 0 | H9: 0 | I9: 0
B10: SG | C10: T | D10: 158236.549 | E10: 0 | F10: 158236.549 | G10: 0 | H10: 0 | I10: 0
B11: SG | C11: TD | D11: 0 | E11: 0 | F11: 0 | G11: 0 | H11: 0 | I11: 0
A12: General Plant | B12: SO | C12: DPW | D12: 0 | E12: 0 | F12: 0 | G12: 0 | H12: 0 | I12: 0
B13: SO | C13: PTD | D13: 268390.9087 | E13: 131924.1858 | F13: 65372.98756 | G13: 71093.7354 | H13: 0 | I13: 0
B14: SO | C14: TD | D14: 0 | E14: 0 | F14: 0 | G14: 0 | H14: 0 | I14: 0
B15: SO | C15: P | D15: 0 | E15: 0 | F15: 0 | G15: 0 | H15: 0 | I15: 0
A16: SSGCH | B16: SG | C16: P | D16: 0 | E16: 0 | F16: 0 | G16: 0 | H16: 0 | I16: 0
A17: SSGCT | B17: SG | C17: DPW | D17: 0 | E17: 0 | F17: 0 | G17: 0 | H17: 0 | I17: 0
A18: SSGCT | B18: SG | C18: P | D18: 0 | E18: 0 | F18: 0 | G18: 0 | H18: 0 | I18: 0
B19: SITUS | C19: DPW | D19: 208267.0321 | E19: 0 | F19: 0 | G19: 208267.0321 | H19: 0 | I19: 0
B20: SITUS | C20: P | D20: 0 | E20: 0 | F20: 0 | G20: 0 | H20: 0 | I20: 0
B21: SITUS | C21: TD | D21: 387943.8288 | E21: 0 | F21: 185840.5225 | G21: 202103.3063 | H21: 0 | I21: 0
A22: Total-CUST | D22: =SUMIF($C:$C,"CUST",D:D) -> 19276.11282 | E22: 0 | F22: 0 | G22: 0 | H22: 19276.11282 | I22: 0
A23: Total-TD | D23: =SUMIF($C:$C,"TD",D:D) -> 387943.8288 | E23: 0 | F23: 185840.5225 | G23: 202103.3063 | H23: 0 | I23: 0
A24: Total-PTD | D24: =SUMIF($C:$C,"PTD",D:D) -> 268390.9087 | E24: 131924.1858 | F24: 65372.98756 | G24: 71093.7354 | H24: 0 | I24: 0
A25: Total-DPW | D25: =SUMIF($C:$C,"DPW",D:D) -> 208267.0321 | E25: 0 | F25: 0 | G25: 208267.0321 | H25: 0 | I25: 0
A26: Total-SSGCH | D26: =SUMIF($B:$B,"SSGCH",D:D) -> 0 | E26: 0 | F26: 0 | G26: 0 | H26: 0 | I26: 0
A27: Total-SSGCT | D27: =SUMIF($B:$B,"SSGCT",D:D) -> 0 | E27: 0 | F27: 0 | G27: 0 | H27: 0 | I27: 0
A28: Total-G-SG | D28: =SUMIF($B:$B,"SG",D:D) -> 276353.824 | E28: 118117.2751 | F28: 158236.549 | G28: 0 | H28: 0 | I28: 0
A29: Total-SE | D29: =SUMIF($B:$B,"SE",D:D) -> 5385.99183 | E29: 5385.99183 | F29: 0 | G29: 0 | H29: 0 | I29: 0
A30: Total-G-Situs | D30: =SUMIF($B:$B,"SITUS",D:D) -> 596210.8609 | E30: 0 | F30: 185840.5225 | G30: 410370.3384 | H30: 0 | I30: 0
A31: Total-SO | D31: =SUMIF($B:$B,"SO",D:D) -> 268390.9087 | E31: 131924.1858 | F31: 65372.98756 | G31: 71093.7354 | H31: 0 | I31: 0
A32: Total-General Plant | D32: =SUM(D7:D21) -> 1165617.698 | E32: 255427.4527 | F32: 409450.059 | G32: 481464.0738 | H32: 19276.11282 | I32: 0
A34: G-SG Factor | D34: =SUM(E34:I34) -> 1 | E34: =E28/$D$28 -> 0.4274132102 | F34: =F28/$D$28 -> 0.5725867898 | G34: =G28/$D$28 -> 0 | H34: =H28/$D$28 -> 0 | I34: =I28/$D$28 -> 0
A35: . | D35: =SUM(E35:I35) -> 1 | E35: =E29/$D$29 -> 1 | F35: =F29/$D$29 -> 0 | G35: =G29/$D$29 -> 0 | H35: =H29/$D$29 -> 0 | I35: =I29/$D$29 -> 0
A36: G-SITUS Factor | D36: =SUM(E36:I36) -> 1 | E36: =E30/$D$30 -> 0 | F36: =F30/$D$30 -> 0.3117026788 | G36: =G30/$D$30 -> 0.6882973212 | H36: =H30/$D$30 -> 0 | I36: =I30/$D$30 -> 0
A37: SO Factor | D37: =SUM(E37:I37) -> 1 | E37: =E31/$D$31 -> 0.4915374608 | F37: =F31/$D$31 -> 0.2435737778 | G37: =G31/$D$31 -> 0.2648887615 | H37: =H31/$D$31 -> 0 | I37: =I31/$D$31 -> 0
A38: G Allocator | D38: =SUM(E38:I38) -> 1 | E38: =E32/$D$32 -> 0.2191348442 | F38: =F32/$D$32 -> 0.3512730285 | G38: =G32/$D$32 -> 0.413054876 | H38: =H32/$D$32 -> 0.01653725132 | I38: =I32/$D$32 -> 0
A39: Total Gen. Plant | D39: =D32 -> 1165617.698
A40: Mining | C40: acct 399 from JAM | D40: ='GROSS PLANT'!D12 -> 171842.301 | E40: =D29 -> 5385.99183 | F40: =SUM(D40+E40) -> 177228.2928
A41: Total | C41: P | D41: =SUM(D39:D40) -> 1337459.999
B44: Functional Allocators: | D44: Prod | E44: Trans | F44: DPW | G44: CUST | H44: DMISC
B45: P | C45: =SUM(D45:H45) -> 1 | D45: ='FORM 1'!$C$13 -> 1 | E45: ='FORM 1'!$D$13 -> 0 | F45: ='FORM 1'!$E$13 -> 0 | G45: ='FORM 1'!$F$13 -> 0 | H45: ='FORM 1'!$G$13 -> 0
B46: T | C46: 1 | D46: ='FORM 1'!$C$14 -> 0 | E46: ='FORM 1'!$D$14 -> 1 | F46: ='FORM 1'!$E$14 -> 0 | G46: ='FORM 1'!$F$14 -> 0 | H46: ='FORM 1'!$G$14 -> 0
B47: TD | C47: 1 | D47: ='FORM 1'!$C$18 -> 0 | E47: ='FORM 1'!$D$18 -> 0.4790397699 | F47: ='FORM 1'!$E$18 -> 0.5209602301 | G47: ='FORM 1'!$F$18 -> 0 | H47: ='FORM 1'!$G$18 -> 0
B48: CUST | C48: 1 | D48: 0 | E48: 0 | F48: 0 | G48: 1 | H48: 0
B49: DPW | C49: 1 | D49: 0 | E49: 0 | F49: 1 | G49: 0 | H49: 0
B50: PTD | C50: 1 | D50: ='FORM 1'!$C$16 -> 0.4915374608 | E50: ='FORM 1'!$D$16 -> 0.2435737778 | F50: ='FORM 1'!$E$16 -> 0.2648887615 | G50: ='FORM 1'!$F$16 -> 0 | H50: ='FORM 1'!$G$16 -> 0
B51: GP | C51: =SUM(D51:H51) -> 1 | D51: =+'GROSS PLANT'!E42 -> 0.4841867519 | E51: =+'GROSS PLANT'!F42 -> 0.2446636008 | F51: =+'GROSS PLANT'!G42 -> 0.2650926256 | G51: =+'GROSS PLANT'!H42 -> 0.006057021687 | H51: =+'GROSS PLANT'!I42 -> 0

Sheet INTANGIBLE PLANT
A1: =+'TOTAL FUNCFAC'!A1 -> PacifiCorp
A2: =+'TOTAL FUNCFAC'!A2 -> 12 Months Ended December 2016
A3: Intangible Plant
A4: (In 000's)
A5: Alloc.
A6: Factor | B6: Funct. | C6: Amount | D6: Production | E6: Transmisssion | F6: DPW | G6: Customer | H6: DMSC
A7: CN | B7: CUST | C7: 142708.8297 | D7: =$C7*VLOOKUP(+$B7,$B$39:$H$46,3) -> 0 | E7: =$C7*VLOOKUP(+$B7,$B$39:$H$46,4) -> 0 | F7: =$C7*VLOOKUP(+$B7,$B$39:$H$46,5) -> 0 | G7: =$C7*VLOOKUP(+$B7,$B$39:$H$46,6) -> 142708.8297 | H7: =$C7*VLOOKUP(+$B7,$B$39:$H$46,7) -> 0
A8: SE | B8: P | C8: 23.2996 | D8: 23.2996 | E8: 0 | F8: 0 | G8: 0 | H8: 0
A9: SG | B9: P | C9: 104841.1247 | D9: 104841.1247 | E9: 0 | F9: 0 | G9: 0 | H9: 0
A10: SG | B10: T | C10: 57403.92112 | D10: 0 | E10: 57403.92112 | F10: 0 | G10: 0 | H10: 0
A11: SG | B11: P | C11: 172821.2447 | D11: 172821.2447 | E11: 0 | F11: 0 | G11: 0 | H11: 0
A12: SG | B12: P | C12: 9790.35601 | D12: 9790.35601 | E12: 0 | F12: 0 | G12: 0 | H12: 0
A13: SO | B13: CUST | C13: 7900.60571 | D13: 0 | E13: 0 | F13: 0 | G13: 7900.60571 | H13: 0
A14: SO | B14: DPW | C14: 32551.42575 | D14: 0 | E14: 0 | F14: 32551.42575 | G14: 0 | H14: 0
A15: SO | B15: P | C15: 27404.39995 | D15: 27404.39995 | E15: 0 | F15: 0 | G15: 0 | H15: 0
A16: SO | B16: PTD | C16: 256403.1834 | D16: 126031.7697 | E16: 62453.09201 | F16: 67918.32168 | G16: 0 | H16: 0
A17: SO | B17: T | C17: 1239.53003 | D17: 0 | E17: 1239.53003 | F17: 0 | G17: 0 | H17: 0
A18: SO | B18: TD | C18: 41519.13761 | D18: 0 | E18: 19889.31813 | F18: 21629.81948 | G18: 0 | H18: 0
A19: SO | B19: LABOR | C19: 0 | D19: 0 | E19: 0 | F19: 0 | G19: 0 | H19: 0
A20: SO | B20: DMSC | C20: 0 | D20: 0 | E20: 0 | F20: 0 | G20: 0 | H20: 0
A21: SITUS | B21: DPW | C21: 157.6616 | D21: 0 | E21: 0 | F21: 157.6616 | G21: 0 | H21: 0
A22: SITUS | B22: P | C22: -32057.95992 | D22: -32057.95992 | E22: 0 | F22: 0 | G22: 0 | H22: 0
A23: SITUS | B23: PTD | C23: 0 | D23: 0 | E23: 0 | F23: 0 | G23: 0 | H23: 0
A24: SITUS | B24: T | C24: 530.80893 | D24: 0 | E24: 530.80893 | F24: 0 | G24: 0 | H24: 0
A25: SITUS | B25: TD | C25: 15816.26415 | D25: 0 | E25: 7576.619539 | F25: 8239.644611 | G25: 0 | H25: 0
A26: Total-DGP | C26: =SUMIF($A:$A,"SG-P",C:C) -> 0 | D26: 0 | E26: 0 | F26: 0 | G26: 0 | H26: 0
A27: Total-DGU | C27: =SUMIF($A:$A,"SG-U",C:C) -> 0 | D27: 0 | E27: 0 | F27: 0 | G27: 0 | H27: 0
A28: Total-SG | C28: =SUMIF($A:$A,"SG",C:C) -> 344856.6465 | D28: 287452.7254 | E28: 57403.92112 | F28: 0 | G28: 0 | H28: 0
A29: Total-SITUS | C29: =SUMIF($A:$A,"SITUS",C:C) -> -15553.22524 | D29: -32057.95992 | E29: 8107.428469 | F29: 8397.306211 | G29: 0 | H29: 0
A30: Total-Intangible | C30: =SUM(C7:C25) -> 839053.833 | D30: =SUM(D7:D25) -> 408854.2347 | E30: 149093.2898 | F30: 130496.8731 | G30: 150609.4354 | H30: 0
A31: I-DGP FACTOR | C31: =SUM(D31:H31) ->  | D31: =D26/$C$26 ->  | E31: =E26/$C$26 ->  | F31: =F26/$C$26 ->  | G31: =G26/$C$26 ->  | H31: =H26/$C$26 -> 
A32: I-DGU FACTOR | C32: =SUM(D32:H32) ->  | D32: =D27/$C$27 ->  | E32: =E27/$C$27 ->  | F32: =F27/$C$27 ->  | G32: =G27/$C$27 ->  | H32: =H27/$C$27 -> 
A33: I-SG FACTOR | C33: =SUM(D33:H33) -> 1 | D33: =D28/$C$28 -> 0.8335426569 | E33: =E28/$C$28 -> 0.1664573431 | F33: =F28/$C$28 -> 0 | G33: =G28/$C$28 -> 0 | H33: =H28/$C$28 -> 0
A34: I-Situs FACTOR | C34: =SUM(D34:H34) -> 1 | D34: =D29/$C$29 -> 2.061177629 | E34: =E29/$C$29 -> -0.5212699195 | F34: =F29/$C$29 -> -0.5399077093 | G34: =G29/$C$29 -> 0 | H34: =H29/$C$29 -> 0
A35: I FACTOR | C35: =SUM(D35:H35) -> 1 | D35: =D30/$C$30 -> 0.4872800989 | E35: =E30/$C$30 -> 0.1776921622 | F35: =F30/$C$30 -> 0.1555286061 | G35: =G30/$C$30 -> 0.1794991328 | H35: =H30/$C$30 -> 0
B38: Functional Allocators: | D38: Prod | E38: Trans | F38: DPW | G38: CUST | H38: DMSC
B39: P | C39: =SUM(D39:H39) -> 1 | D39: ='FORM 1'!$C$13 -> 1 | E39: ='FORM 1'!$D$13 -> 0 | F39: ='FORM 1'!$E$13 -> 0 | G39: ='FORM 1'!$F$13 -> 0 | H39: ='FORM 1'!$G$13 -> 0
B40: T | C40: 1 | D40: ='FORM 1'!$C$14 -> 0 | E40: ='FORM 1'!$D$14 -> 1 | F40: ='FORM 1'!$E$14 -> 0 | G40: ='FORM 1'!$F$14 -> 0 | H40: ='FORM 1'!$G$14 -> 0
B41: TD | C41: 1 | D41: ='FORM 1'!$C$18 -> 0 | E41: ='FORM 1'!$D$18 -> 0.4790397699 | F41: ='FORM 1'!$E$18 -> 0.5209602301 | G41: ='FORM 1'!$F$18 -> 0 | H41: ='FORM 1'!$G$18 -> 0
B42: CUST | C42: 1 | D42: 0 | E42: 0 | F42: 0 | G42: 1 | H42: 0
B43: DPW | C43: 1 | D43: 0 | E43: 0 | F43: 1 | G43: 0 | H43: 0
B44: PTD | C44: 1 | D44: ='FORM 1'!$C$16 -> 0.4915374608 | E44: ='FORM 1'!$D$16 -> 0.2435737778 | F44: ='FORM 1'!$E$16 -> 0.2648887615 | G44: ='FORM 1'!$F$16 -> 0 | H44: ='FORM 1'!$G$16 -> 0
B45: DMSC | C45: 1 | D45: ='TOTAL FUNCFAC'!C16 -> 0 | E45: ='TOTAL FUNCFAC'!D16 -> 0 | F45: ='TOTAL FUNCFAC'!E16 -> 0 | G45: ='TOTAL FUNCFAC'!F16 -> 0 | H45: ='TOTAL FUNCFAC'!G16 -> 1
B46: LABOR | C46: =SUM(D46:H46) -> 1 | D46: ='SCH M'!F146 -> 0.4608921071 | E46: ='SCH M'!G146 -> 0.08724591166 | F46: ='SCH M'!H146 -> 0.314657853 | G46: ='SCH M'!I146 -> 0.1372041283 | H46: ='SCH M'!J146 -> 0

Sheet SCH M
B1: =+'TOTAL FUNCFAC'!A1 -> PacifiCorp
B2: =+'TOTAL FUNCFAC'!A2 -> 12 Months Ended December 2016
B3: Schedule M
B4: Primary | C4: PITA
B5: Account | C5: Factor | D5: Function | E5: Amount | F5: Production | G5: Transmission | H5: Poles & Wires | I5: Customers | J5: Miscellaneous
B6: ADDITIONS
A7: =IF(C7="","",B7&"-"&C7) -> SCHMAP-SCHMDEXP | B7: SCHMAP | C7: SCHMDEXP | D7: LABOR | E7: 68.49189 | F7: =VLOOKUP($D7,$D$140:$J$152,3,FALSE)*$E7 -> 31.5673715 | G7: =VLOOKUP($D7,$D$140:$J$152,4,FALSE)*$E7 -> 5.975637384 | H7: =VLOOKUP($D7,$D$140:$J$152,5,FALSE)*$E7 -> 21.55151105 | I7: =VLOOKUP($D7,$D$140:$J$152,6,FALSE)*$E7 -> 9.39737006 | J7: =VLOOKUP($D7,$D$140:$J$152,7,FALSE)*$E7 -> 0
A8: =IF(C8="","",B8&"-"&C8) -> SCHMAP-SE | B8: SCHMAP | C8: SE | D8: P | E8: 47.238 | F8: =VLOOKUP($D8,$D$140:$J$152,3,FALSE)*$E8 -> 47.238 | G8: =VLOOKUP($D8,$D$140:$J$152,4,FALSE)*$E8 -> 0 | H8: =VLOOKUP($D8,$D$140:$J$152,5,FALSE)*$E8 -> 0 | I8: =VLOOKUP($D8,$D$140:$J$152,6,FALSE)*$E8 -> 0 | J8: =VLOOKUP($D8,$D$140:$J$152,7,FALSE)*$E8 -> 0
A9: =IF(C9="","",B9&"-"&C9) -> SCHMAP-SO | B9: SCHMAP | C9: SO | D9: P | E9: 250.04462 | F9: =VLOOKUP($D9,$D$140:$J$152,3,FALSE)*$E9 -> 250.04462 | G9: =VLOOKUP($D9,$D$140:$J$152,4,FALSE)*$E9 -> 0 | H9: =VLOOKUP($D9,$D$140:$J$152,5,FALSE)*$E9 -> 0 | I9: =VLOOKUP($D9,$D$140:$J$152,6,FALSE)*$E9 -> 0 | J9: =VLOOKUP($D9,$D$140:$J$152,7,FALSE)*$E9 -> 0
A10: =IF(C10="","",B10&"-"&C10) -> SCHMAP-SO | B10: SCHMAP | C10: SO | D10: LABOR | E10: 0 | F10: =VLOOKUP($D10,$D$140:$J$152,3,FALSE)*$E10 -> 0 | G10: =VLOOKUP($D10,$D$140:$J$152,4,FALSE)*$E10 -> 0 | H10: =VLOOKUP($D10,$D$140:$J$152,5,FALSE)*$E10 -> 0 | I10: =VLOOKUP($D10,$D$140:$J$152,6,FALSE)*$E10 -> 0 | J10: =VLOOKUP($D10,$D$140:$J$152,7,FALSE)*$E10 -> 0
A11: =IF(C11="","",B11&"-"&C11) -> SCHMAP-SO | B11: SCHMAP | C11: SO | D11: PTD | E11: 0 | F11: =VLOOKUP($D11,$D$140:$J$152,3,FALSE)*$E11 -> 0 | G11: =VLOOKUP($D11,$D$140:$J$152,4,FALSE)*$E11 -> 0 | H11: =VLOOKUP($D11,$D$140:$J$152,5,FALSE)*$E11 -> 0 | I11: =VLOOKUP($D11,$D$140:$J$152,6,FALSE)*$E11 -> 0 | J11: =VLOOKUP($D11,$D$140:$J$152,7,FALSE)*$E11 -> 0
A13: =IF(C13="","",B13&"-"&C13) ->  | B13: Total-SO | E13: =SUMIF($A:$A,"SCHMAP-SO",E:E) -> 250.04462 | F13: 250.04462 | G13: 0 | H13: 0 | I13: 0 | J13: 0
A14: =IF(C14="","",B14&"-"&C14) ->  | B14: Total SCHMAP | E14: =SUMIF($B:$B,"SCHMAP",E:E) -> 365.77451 | F14: 328.8499915 | G14: 5.975637384 | H14: 21.55151105 | I14: 9.39737006 | J14: 0
A15: =IF(C15="","",B15&"-"&C15) ->  | B15: SCHMAP-SO | E15: =SUM(F15:J15) -> 1 | F15: =IF(ISERROR(F13/$E13)," ",(F13/$E13)) -> 1 | G15: 0 | H15: 0 | I15: 0 | J15: 0
A16: =IF(C16="","",B16&"-"&C16) ->  | B16: SCHMAP FACTOR | E16: =SUM(F16:J16) -> 1 | F16: 0.8990511436 | G16: 0.01633694317 | H16: 0.05892021031 | I16: 0.02569170296 | J16: 0
A18: =IF(C18="","",B18&"-"&C18) -> SCHMAT-CIAC | B18: SCHMAT | C18: CIAC | D18: DPW | E18: 71153.413 | F18: =VLOOKUP($D18,$D$140:$J$152,3,FALSE)*$E18 -> 0 | G18: =VLOOKUP($D18,$D$140:$J$152,4,FALSE)*$E18 -> 0 | H18: =VLOOKUP($D18,$D$140:$J$152,5,FALSE)*$E18 -> 71153.413 | I18: =VLOOKUP($D18,$D$140:$J$152,6,FALSE)*$E18 -> 0 | J18: =VLOOKUP($D18,$D$140:$J$152,7,FALSE)*$E18 -> 0
A19: SCHMAT-BADDEBT | B19: SCHMAT | C19: BADDEBT | D19: CUST | E19: 139.3196201 | F19: 0 | G19: 0 | H19: 0 | I19: 139.3196201 | J19: 0
A20: SCHMAT-SCHMDEXP | B20: SCHMAT | C20: SCHMDEXP | D20: GP | E20: 760803.3722 | F20: 368370.9136 | G20: 186140.8926 | H20: 201683.3635 | I20: 4608.202525 | J20: 0
A21: =IF(C21="","",B21&"-"&C21) -> SCHMAT-GPS | B21: SCHMAT | C21: GPS | D21: GP | E21: -663.38653 | F21: -321.2029692 | G21: -162.3065372 | H21: -175.858877 | I21: -4.018146599 | J21: 0
A22: =IF(C22="","",B22&"-"&C22) -> SCHMAT-SE | B22: SCHMAT | C22: SE | D22: LABOR | E22: 63.253 | F22: 29.15280845 | G22: 5.51856565 | H22: 19.90305317 | I22: 8.678572725 | J22: 0
A23: SCHMAT-SE | B23: SCHMAT | C23: SE | D23: P | E23: 47508.56263 | F23: 47508.56263 | G23: 0 | H23: 0 | I23: 0 | J23: 0
A24: SCHMAT-SG | B24: SCHMAT | C24: SG | D24: DPW | F24: 0 | G24: 0 | H24: 0 | I24: 0 | J24: 0
A25: =IF(C25="","",B25&"-"&C25) -> SCHMAT-SG | B25: SCHMAT | C25: SG | D25: P | E25: -135.67626 | F25: -135.67626 | G25: 0 | H25: 0 | I25: 0 | J25: 0
A26: SCHMAT-SG | B26: SCHMAT | C26: SG | D26: T | F26: 0 | G26: 0 | H26: 0 | I26: 0 | J26: 0
A27: SCHMAT-SGCT | B27: SCHMAT | C27: SGCT | D27: P | E27: 1122.425 | F27: 1122.425 | G27: 0 | H27: 0 | I27: 0 | J27: 0
A28: SCHMAT-SNP | B28: SCHMAT | C28: SNP | D28: GP | E28: 572.40604 | F28: 277.1514213 | G28: 140.0469229 | H28: 151.7406201 | I28: 3.467075798 | J28: 0
A29: SCHMAT-SNP | B29: SCHMAT | C29: SNP | D29: PTD | E29: 15278.163 | F29: 7509.789446 | G29: 3721.359879 | H29: 4047.013674 | I29: 0 | J29: 0
A30: SCHMAT-SNPD | B30: SCHMAT | C30: SNPD | D30: DPW | E30: 1863.63442 | F30: 0 | G30: 0 | H30: 1863.63442 | I30: 0 | J30: 0
A31: =IF(C31="","",B31&"-"&C31) -> SCHMAT-SO | B31: SCHMAT | C31: SO | D31: DMSC | F31: 0 | G31: 0 | H31: 0 | I31: 0 | J31: 0
A32: =IF(C32="","",B32&"-"&C32) -> SCHMAT-SO | B32: SCHMAT | C32: SO | D32: LABOR | E32: 27255.17858 | F32: 12561.69669 | G32: 2377.902903 | H32: 8576.055975 | I32: 3739.523018 | J32: 0
A33: SCHMAT-SO | B33: SCHMAT | C33: SO | D33: PTD | E33: 2781.60537 | F33: 1367.26324 | G33: 677.5261283 | H33: 736.8160013 | I33: 0 | J33: 0
A34: =IF(C34="","",B34&"-"&C34) -> SCHMAT-OTHER | B34: SCHMAT | C34: OTHER | D34: DMSC | E34: 2822.61512 | F34: 0 | G34: 0 | H34: 0 | I34: 0 | J34: 2822.61512
A35: =IF(C35="","",B35&"-"&C35) -> SCHMAT-OTHER | B35: SCHMAT | C35: OTHER | D35: GP | F35: 0 | G35: 0 | H35: 0 | I35: 0 | J35: 0
A36: SCHMAT-OTHER | B36: SCHMAT | C36: OTHER | D36: P | E36: 33065.71509 | F36: 33065.71509 | G36: 0 | H36: 0 | I36: 0 | J36: 0
A37: SCHMAT-OTHER | B37: SCHMAT | C37: OTHER | D37: PTD | E37: 15230.04042 | F37: 7486.135395 | G37: 3709.638481 | H37: 4034.266544 | I37: 0 | J37: 0
A38: =IF(C38="","",B38&"-"&C38) -> SCHMAT-OTHER | B38: SCHMAT | C38: OTHER | D38: CUST | E38: 724.54588 | F38: 0 | G38: 0 | H38: 0 | I38: 724.54588 | J38: 0
A39: SCHMAT-TROJD | B39: SCHMAT | C39: TROJD | D39: P | E39: -131.95 | F39: -131.95 | G39: 0 | H39: 0 | I39: 0 | J39: 0
A40: SCHMAT-SITUS | B40: SCHMAT | C40: SITUS | D40: DMSC | F40: 0 | G40: 0 | H40: 0 | I40: 0 | J40: 0
A41: SCHMAT-SITUS | B41: SCHMAT | C41: SITUS | D41: DPW | E41: 391.09236 | F41: 0 | G41: 0 | H41: 391.09236 | I41: 0 | J41: 0
A42: SCHMAT-SITUS | B42: SCHMAT | C42: SITUS | D42: ESD | E42: 49.91292 | F42: 14.973876 | G42: 4.991292 | H42: 29.947752 | I42: 0 | J42: 0
A43: SCHMAT-SITUS | B43: SCHMAT | C43: SITUS | D43: GP | F43: 0 | G43: 0 | H43: 0 | I43: 0 | J43: 0
A44: SCHMAT-SITUS | B44: SCHMAT | C44: SITUS | D44: LABOR | E44: 3984.74122 | F44: 1836.535777 | G44: 347.6523805 | H44: 1253.830117 | I44: 546.7229454 | J44: 0
A45: SCHMAT-SITUS | B45: SCHMAT | C45: SITUS | D45: P | E45: 8256.71383 | F45: 8256.71383 | G45: 0 | H45: 0 | I45: 0 | J45: 0
A46: SCHMAT-SITUS | B46: SCHMAT | C46: SITUS | D46: PTD | E46: -103.30773 | F46: -50.77961928 | G46: -25.16305407 | H46: -27.36505665 | I46: 0 | J46: 0
A47: SCHMAT-SITUS | B47: SCHMAT | C47: SITUS | D47: T | F47: 0 | G47: 0 | H47: 0 | I47: 0 | J47: 0
B48: Total-SE | E48: =SUMIF($A:$A,"SCHMAT-SE",E:E) -> 47571.81563 | F48: 47537.71544 | G48: 5.51856565 | H48: 19.90305317 | I48: 8.678572725 | J48: 0
A49: =IF(C49="","",B49&"-"&C49) ->  | B49: Total-SNP | E49: =SUMIF($A:$A,"SCHMAT-SNP",E:E) -> 15850.56904 | F49: 7786.940867 | G49: 3861.406802 | H49: 4198.754294 | I49: 3.467075798 | J49: 0
B50: Total-SITUS | E50: =SUMIF($A:$A,"SCHMAT-SITUS",E:E) -> 12579.1526 | F50: 10057.44386 | G50: 327.4806184 | H50: 1647.505172 | I50: 546.7229454 | J50: 0
B51: Total-SO | E51: =SUMIF($A:$A,"SCHMAT-SO",E:E) -> 30036.78395 | F51: 13928.95993 | G51: 3055.429031 | H51: 9312.871976 | I51: 3739.523018 | J51: 0
B52: Total-SCHMAT | E52: =SUMIF($B:$B,"SCHMAT",E:E) -> 992032.3892 | F52: 488767.42 | G52: 196938.0595 | H52: 293737.8531 | I52: 9766.44149 | J52: 2822.61512
B53: SCHMAT-SE | E53: =SUM(F53:J53) -> 1 | F53: =IF(ISERROR(F48/$E48)," ",(F48/$E48)) -> 0.999283185 | G53: 0.0001160049407 | H53: 0.0004183790951 | I53: 0.0001824309754 | J53: 0
B54: SCHMAT-SNP | E54: =SUM(F54:J54) -> 1 | F54: 0.4912720072 | G54: 0.2436131342 | H54: 0.2648961235 | I54: 0.0002187350996 | J54: 0
B55: SCHMAT-SITUS | E55: =SUM(F55:J55) -> 1 | F55: 0.7995327017 | G55: 0.0260335993 | H55: 0.1309710777 | I55: 0.04346262128 | J55: 0
B56: SCHMAT-SO | E56: =SUM(F56:J56) -> 1 | F56: 0.4637300701 | G56: 0.1017229087 | H56: 0.3100489051 | I56: 0.1244981162 | J56: 0
B57: SCHMAT FACTOR | E57: =SUM(F57:J57) -> 1 | F57: 0.4926930061 | G57: 0.1985197879 | H57: 0.2960970391 | I57: 0.009844881676 | J57: 0.002845285246
A59: =IF(C59="","",B59&"-"&C59) -> SCHMAF-DGP | B59: SCHMAF | C59: DGP | D59: P | E59: 0 | F59: =VLOOKUP($D59,$D$140:$J$152,3,FALSE)*$E59 -> 0 | G59: =VLOOKUP($D59,$D$140:$J$152,4,FALSE)*$E59 -> 0 | H59: =VLOOKUP($D59,$D$140:$J$152,5,FALSE)*$E59 -> 0 | I59: =VLOOKUP($D59,$D$140:$J$152,6,FALSE)*$E59 -> 0 | J59: =VLOOKUP($D59,$D$140:$J$152,7,FALSE)*$E59 -> 0
A60: =IF(C60="","",B60&"-"&C60) -> SCHMAF-TROJP | B60: SCHMAF | C60: TROJP | D60: P | E60: 0 | F60: =VLOOKUP($D60,$D$140:$J$152,3,FALSE)*$E60 -> 0 | G60: =VLOOKUP($D60,$D$140:$J$152,4,FALSE)*$E60 -> 0 | H60: =VLOOKUP($D60,$D$140:$J$152,5,FALSE)*$E60 -> 0 | I60: =VLOOKUP($D60,$D$140:$J$152,6,FALSE)*$E60 -> 0 | J60: =VLOOKUP($D60,$D$140:$J$152,7,FALSE)*$E60 -> 0
A61: =IF(C61="","",B61&"-"&C61) ->  | B61: Total-SCHMAF | E61: =SUMIF($A:$A,"SCHMAF",E:E) -> 0 | F61: 0 | G61: 0 | H61: 0 | I61: 0 | J61: 0
B62: SCHMAF FACTOR | E62: =SUM(F62:J62) -> 0 | F62: =IF(ISERROR(F61/$E61)," ",(F61/$E61)) ->  | G62: =IF(ISERROR(G61/$E61)," ",(G61/$E61)) ->  | H62: =IF(ISERROR(H61/$E61)," ",(H61/$E61)) ->  | I62: =IF(ISERROR(I61/$E61)," ",(I61/$E61)) ->  | J62: =IF(ISERROR(J61/$E61)," ",(J61/$E61)) -> 
B64: Total-SCHMA | E64: =SUM(E61,E52,E14) -> 992398.1637 | F64: 489096.2699 | G64: 196944.0352 | H64: 293759.4046 | I64: 9775.83886 | J64: 2822.61512
B65: SCHMA FACTOR | E65: =SUM(F65:J65) -> 1 | F65: =IF(ISERROR(F64/$E64)," ",(F64/$E64)) -> 0.4928427801 | G65: =IF(ISERROR(G64/$E64)," ",(G64/$E64)) -> 0.1984526396 | H65: =IF(ISERROR(H64/$E64)," ",(H64/$E64)) -> 0.2960096213 | I65: =IF(ISERROR(I64/$E64)," ",(I64/$E64)) -> 0.00985072244 | J65: =IF(ISERROR(J64/$E64)," ",(J64/$E64)) -> 0.002844236541
B67: DEDUCTIONS
A68: SCHMDP-SCHMDEXP | B68: SCHMDP | C68: SCHMDEXP | D68: LABOR | E68: -16.93311 | F68: =VLOOKUP($D68,$D$140:$J$152,3,FALSE)*$E68 -> -7.804336748 | G68: =VLOOKUP($D68,$D$140:$J$152,4,FALSE)*$E68 -> -1.477344619 | H68: =VLOOKUP($D68,$D$140:$J$152,5,FALSE)*$E68 -> -5.328136037 | I68: =VLOOKUP($D68,$D$140:$J$152,6,FALSE)*$E68 -> -2.323292596 | J68: =VLOOKUP($D68,$D$140:$J$152,7,FALSE)*$E68 -> 0
A69: SCHMDP-SE | B69: SCHMDP | C69: SE | D69: P | E69: 1783.664 | F69: 1783.664 | G69: 0 | H69: 0 | I69: 0 | J69: 0
A70: SCHMDP-SG | B70: SCHMDP | C70: SG | D70: P | E70: 25541.14226 | F70: 25541.14226 | G70: 0 | H70: 0 | I70: 0 | J70: 0
A71: SCHMDP-SNP | B71: SCHMDP | C71: SNP | D71: PTD | E71: 64.76 | F71: 31.83196596 | G71: 15.77383785 | H71: 17.15419619 | I71: 0 | J71: 0
A72: SCHMDP-SO | B72: SCHMDP | C72: SO | D72: LABOR | F72: 0 | G72: 0 | H72: 0 | I72: 0 | J72: 0
A73: SCHMDP-SITUS | B73: SCHMDP | C73: SITUS | D73: PTD | F73: 0 | G73: 0 | H73: 0 | I73: 0 | J73: 0
B74: Total-SO | E74: =SUMIF($A:$A,"SCHMDP-SO",E:E) -> 0 | F74: 0 | G74: 0 | H74: 0 | I74: 0 | J74: 0
B75: Total-SCHMDP | E75: =SUMIF($B:$B,"SCHMDP",E:E) -> 27372.63315 | F75: 27348.83389 | G75: 14.29649323 | H75: 11.82606015 | I75: -2.323292596 | J75: 0
B76: SCHMDP-SO | E76: =SUM(F76:J76) -> 0 | F76: =IF(ISERROR(F74/$E74)," ",(F74/$E74)) -> 
B77: SCHMDP FACTOR | E77: =SUM(F77:J77) -> 1 | F77: 0.9991305454 | G77: 0.0005222914855 | H77: 0.0004320395517 | I77: -8.487647438e-05 | J77: 0
A79: SCHMDT-BADDEBT | B79: SCHMDT | C79: BADDEBT | D79: CUST | F79: =VLOOKUP($D79,$D$140:$J$152,3,FALSE)*$E79 -> 0 | G79: =VLOOKUP($D79,$D$140:$J$152,4,FALSE)*$E79 -> 0 | H79: =VLOOKUP($D79,$D$140:$J$152,5,FALSE)*$E79 -> 0 | I79: =VLOOKUP($D79,$D$140:$J$152,6,FALSE)*$E79 -> 0 | J79: =VLOOKUP($D79,$D$140:$J$152,7,FALSE)*$E79 -> 0
A80: SCHMDT-CN | B80: SCHMDT | C80: CN | D80: CUST | F80: 0 | G80: 0 | H80: 0 | I80: 0 | J80: 0
A81: SCHMDT-GPS | B81: SCHMDT | C81: GPS | D81: GP | E81: 0 | F81: 0 | G81: 0 | H81: 0 | I81: 0 | J81: 0
A82: SCHMDT-GPS | B82: SCHMDT | C82: GPS | D82: P | F82: 0 | G82: 0 | H82: 0 | I82: 0 | J82: 0
A83: SCHMDT-GPS | B83: SCHMDT | C83: GPS | D83: PTD | E83: 81722.26376 | F83: 40169.55402 | G83: 19905.40051 | H83: 21647.30923 | I83: 0 | J83: 0
A84: SCHMDT-SG | B84: SCHMDT | C84: SG | D84: P | E84: 170974.5515 | F84: 170974.5515 | G84: 0 | H84: 0 | I84: 0 | J84: 0
A85: =IF(C85="","",B85&"-"&C85) -> SCHMDT-SG | B85: SCHMDT | C85: SG | D85: T | E85: -123.91426 | F85: 0 | G85: -123.91426 | H85: 0 | I85: 0 | J85: 0
A86: SCHMDT-SE | B86: SCHMDT | C86: SE | D86: P | E86: 16456.35486 | F86: 16456.35486 | G86: 0 | H86: 0 | I86: 0 | J86: 0
A87: =IF(C87="","",B87&"-"&C87) -> SCHMDT-SNPD | B87: SCHMDT | C87: SNPD | D87: DPW | E87: -35.59995 | F87: 0 | G87: 0 | H87: -35.59995 | I87: 0 | J87: 0
A88: =IF(C88="","",B88&"-"&C88) -> SCHMDT-SNPD | B88: SCHMDT | C88: SNPD | D88: P | E88: -305.79566 | F88: -305.79566 | G88: 0 | H88: 0 | I88: 0 | J88: 0
A89: SCHMDT-SNP | B89: SCHMDT | C89: SNP | D89: PTD | E89: 42461.88612 | F89: 20871.60768 | G89: 10342.60201 | H89: 11247.67642 | I89: 0 | J89: 0
A90: SCHMDT-SO | B90: SCHMDT | C90: SO | D90: ESD | E90: 4489.38879 | F90: 1346.816637 | G90: 448.938879 | H90: 2693.633274 | I90: 0 | J90: 0
A91: SCHMDT-SO | B91: SCHMDT | C91: SO | D91: GP | E91: 4931.895 | F91: 2387.958221 | G91: 1206.65519 | H91: 1307.408995 | I91: 29.87259497 | J91: 0
A92: SCHMDT-SO | B92: SCHMDT | C92: SO | D92: LABOR | E92: 45360.79369 | F92: 20906.43178 | G92: 3957.543799 | H92: 14273.12995 | I92: 6223.688155 | J92: 0
A93: SCHMDT-SO | B93: SCHMDT | C93: SO | D93: PTD | E93: 3661.8078 | F93: 1799.915708 | G93: 891.9203593 | H93: 969.9717328 | I93: 0 | J93: 0
A94: =IF(C94="","",B94&"-"&C94) -> SCHMDT-OTHER | B94: SCHMDT | C94: OTHER | D94: CUST | E94: 8.54113 | F94: 0 | G94: 0 | H94: 0 | I94: 8.54113 | J94: 0
A95: SCHMDT-OTHER | B95: SCHMDT | C95: OTHER | D95: DDS2 | E95: -124.29094 | F95: -114.0689994 | G95: 1.812356949 | H95: 6.53637902 | I95: -18.24938074 | J95: -0.3212958078
A96: =IF(C96="","",B96&"-"&C96) -> SCHMDT-OTHER | B96: SCHMDT | C96: OTHER | D96: DMSC | E96: -1976.33095 | F96: 0 | G96: 0 | H96: 0 | I96: 0 | J96: -1976.33095
A97: SCHMDT-OTHER | B97: SCHMDT | C97: OTHER | D97: DPW | F97: 0 | G97: 0 | H97: 0 | I97: 0 | J97: 0
A98: SCHMDT-OTHER | B98: SCHMDT | C98: OTHER | D98: LABOR | E98: -850.19771 | F98: -391.849414 | G98: -74.1762743 | H98: -267.521386 | I98: -116.6506356 | J98: 0
A99: SCHMDT-OTHER | B99: SCHMDT | C99: OTHER | D99: P | E99: -58252.37756 | F99: -58252.37756 | G99: 0 | H99: 0 | I99: 0 | J99: 0
A100: SCHMDT-OTHER | B100: SCHMDT | C100: OTHER | D100: PT | F100: 0 | G100: 0 | H100: 0 | I100: 0 | J100: 0
A101: =IF(C101="","",B101&"-"&C101) -> SCHMDT-OTHER | B101: SCHMDT | C101: OTHER | D101: GP | E101: 4605.5043 | F101: 2229.924168 | G101: 1126.799266 | H101: 1220.885227 | I101: 27.89563942 | J101: 0
A102: SCHMDT-TAXDEPR | B102: SCHMDT | C102: TAXDEPR | D102: TAXDEPR | E102: 910975.456 | F102: 383257.4886 | G102: 231614.9685 | H102: 289672.0352 | I102: 6430.963668 | J102: 0
A103: SCHMDT-SITUS | B103: SCHMDT | C103: SITUS | D103: DMSC | E103: -316.78068 | F103: 0 | G103: 0 | H103: 0 | I103: 0 | J103: -316.78068
A104: =IF(C104="","",B104&"-"&C104) -> SCHMDT-SITUS | B104: SCHMDT | C104: SITUS | D104: DDS2 | E104: 1174.62261 | F104: 1078.019249 | G104: -17.12784094 | H104: -61.7726327 | I104: 172.4673997 | J104: 3.036434677
A105: SCHMDT-SITUS | B105: SCHMDT | C105: SITUS | D105: GP | E105: 427.01908 | F105: 206.7569813 | G105: 104.4760257 | H105: 113.1996091 | I105: 2.586463828 | J105: 0
A106: SCHMDT-SITUS | B106: SCHMDT | C106: SITUS | D106: LABOR | E106: 1106.5541 | F106: 510.0020508 | G106: 96.54232125 | H106: 348.1859373 | I106: 151.8237907 | J106: 0
A107: SCHMDT-SITUS | B107: SCHMDT | C107: SITUS | D107: P | E107: -13562.10012 | F107: -13562.10012 | G107: 0 | H107: 0 | I107: 0 | J107: 0
A108: SCHMDT-SITUS | B108: SCHMDT | C108: SITUS | D108: PTD | E108: 1.44523 | F108: 0.7103846844 | G108: 0.3520201309 | H108: 0.3828251847 | I108: 0 | J108: 0
B109: Total-GPS | E109: =SUMIF($A:$A,"SCHMDT-GPS",E:E) -> 81722.26376 | F109: 40169.55402 | G109: 19905.40051 | H109: 21647.30923 | I109: 0 | J109: 0
A110: =IF(C110="","",B110&"-"&C110) ->  | B110: Total-CN | E110: =SUMIF($A:$A,"SCHMDT-CN",E:E) -> 0 | F110: 0 | G110: 0 | H110: 0 | I110: 0 | J110: 0
B111: Total-SG | E111: =SUMIF($A:$A,"SCHMDT-SG",E:E) -> 170850.6372 | F111: 170974.5515 | G111: -123.91426 | H111: 0 | I111: 0 | J111: 0
A112: =IF(C112="","",B112&"-"&C112) ->  | B112: Total-SE | E112: =SUMIF($A:$A,"SCHMDT-SE",E:E) -> 16456.35486 | F112: 16456.35486 | G112: 0 | H112: 0 | I112: 0 | J112: 0
B113: Total-SNP | E113: =SUMIF($A:$A,"SCHMDT-SNP",E:E) -> 42461.88612 | F113: 20871.60768 | G113: 10342.60201 | H113: 11247.67642 | I113: 0 | J113: 0
B114: Total SO | E114: =SUMIF($A:$A,"SCHMDT-SO",E:E) -> 58443.88528 | F114: 26441.12235 | G114: 6505.058227 | H114: 19244.14395 | I114: 6253.56075 | J114: 0
A115: =IF(C115="","",B115&"-"&C115) ->  | B115: Total OTHER | E115: =SUMIF($A:$A,"SCHMDT-OTHER",E:E) -> -56589.15173 | F115: -56528.37181 | G115: 1054.435348 | H115: 959.9002202 | I115: -98.46324696 | J115: -1976.652246
A116: =IF(C116="","",B116&"-"&C116) ->  | B116: Total TAXDEPR | E116: =SUMIF($A:$A,"SCHMDT-TAXDEPR",E:E) -> 910975.456 | F116: 383257.4886 | G116: 231614.9685 | H116: 289672.0352 | I116: 6430.963668 | J116: 0
B117: Total-SITUS | E117: =SUMIF($A:$A,"SCHMDT-SITUS",E:E)+SUMIF($A:$A,"SCHMDT-CN",E:E) -> -11169.23978 | F117: -11766.61145 | G117: 184.2425262 | H117: 399.9957389 | I117: 326.8776542 | J117: -313.7442453
B118: Total SCHMDT | E118: =SUMIF($B:$B,"SCHMDT",E:E) -> 1212810.696 | F118: 589569.9 | G118: 269482.7929 | H118: 343135.4609 | I118: 12912.93883 | J118: -2290.396491
B119: SCHMDT-GPS | E119: =SUM(F119:J119) -> 1 | F119: =IF(ISERROR(F109/$E109)," ",(F109/$E109)) -> 0.4915374608 | G119: 0.2435737778 | H119: 0.2648887615 | I119: 0 | J119: 0
A120: =IF(C120="","",B120&"-"&C120) ->  | B120: SCHMDT-CN | E120: =SUM(F120:J120) -> 0
B121: SCHMDT-SG | E121: =SUM(F121:J121) -> 1 | F121: 1.000725278 | G121: -0.0007252783016 | H121: 0 | I121: 0 | J121: 0
A122: =IF(C122="","",B122&"-"&C122) ->  | B122: SCHMDT-SE | E122: =SUM(F122:J122) -> 1 | F122: 1 | G122: 0 | H122: 0 | I122: 0 | J122: 0
B123: SCHMDT-SNP | E123: 1 | F123: 0.4915374608 | G123: 0.2435737778 | H123: 0.2648887615 | I123: 0 | J123: 0
B124: SCHMDT-SO | E124: 1 | F124: 0.4524189695 | G124: 0.1113043425 | H124: 0.3292755754 | I124: 0.1070011126 | J124: 0
A125: =IF(C125="","",B125&"-"&C125) ->  | B125: SCHMDT-OTHER | E125: =SUM(F125:J125) -> 1 | F125: 0.9989259439 | G125: -0.01863317113 | H125: -0.016962619 | I125: 0.00173996683 | J125: 0.03492987941
A126: =IF(C126="","",B126&"-"&C126) ->  | B126: SCHMDT-TAXDEPR | E126: =SUM(F126:J126) -> 1 | F126: 0.4207111026 | G126: 0.254249406 | H126: 0.3179800656 | I126: 0.007059425834 | J126: 0
A127: =IF(C127="","",B127&"-"&C127) ->  | B127: SCHMDT-SITUS | E127: 1 | F127: =IF(ISERROR(F117/$E117)," ",(F117/$E117)) -> 1.053483647 | G127: -0.01649552967 | H127: -0.03581226178 | I127: -0.02926588207 | J127: 0.02809002685
B128: SCHMDT FACTOR | E128: 1 | F128: 0.4861186514 | G128: 0.2221969131 | H128: 0.2829258201 | I128: 0.01064711819 | J128: -0.001888502879
A130: SCHMDF-DGP | B130: SCHMDF | C130: DGP | D130: P | E130: 0 | F130: =VLOOKUP($D130,$D$140:$J$152,3,FALSE)*$E130 -> 0 | G130: =VLOOKUP($D130,$D$140:$J$152,4,FALSE)*$E130 -> 0 | H130: =VLOOKUP($D130,$D$140:$J$152,5,FALSE)*$E130 -> 0 | I130: =VLOOKUP($D130,$D$140:$J$152,6,FALSE)*$E130 -> 0 | J130: =VLOOKUP($D130,$D$140:$J$152,7,FALSE)*$E130 -> 0
B131: Total-SCHMDF | E131: =SUMIF($A:$A,"SCHMDF",E:E) -> 0 | F131: 0 | G131: 0 | H131: 0 | I131: 0 | J131: 0
B132: SCHMDF FACTOR | E132: =SUM(F132:J132) -> 0 | F132: =IF(ISERROR(F131/$E131)," ",(F131/$E131)) ->  | G132: =IF(ISERROR(G131/$E131)," ",(G131/$E131)) ->  | H132: =IF(ISERROR(H131/$E131)," ",(H131/$E131)) ->  | I132: =IF(ISERROR(I131/$E131)," ",(I131/$E131)) ->  | J132: =IF(ISERROR(J131/$E131)," ",(J131/$E131)) -> 
B134: Total-SCHMD | E134: =SUM(E131,E118,E75) -> 1240183.329 | F134: 616918.7339 | G134: 269497.0894 | H134: 343147.2869 | I134: 12910.61553 | J134: -2290.396491
B135: SCHMD FACTOR | E135: =SUM(F135:J135) -> 1 | F135: =IF(ISERROR(F134/$E134)," ",(F134/$E134)) -> 0.4974415632 | G135: =IF(ISERROR(G134/$E134)," ",(G134/$E134)) -> 0.2173042348 | H135: =IF(ISERROR(H134/$E134)," ",(H134/$E134)) -> 0.2766907753 | I135: =IF(ISERROR(I134/$E134)," ",(I134/$E134)) -> 0.0104102476 | J135: =IF(ISERROR(J134/$E134)," ",(J134/$E134)) -> -0.001846820899
B137: Net SCHM
E139: Total | F139: Production | G139: Transmission | H139: Poles & Wires | I139: Customers | J139: Miscellaneous
D140: DMSC | E140: =SUM(F140:J140) -> 1 | F140: 0 | G140: 0 | H140: 0 | I140: 0 | J140: 1
D141: DPW | E141: =SUM(F141:J141) -> 1 | F141: 0 | G141: 0 | H141: 1 | I141: 0 | J141: 0
D142: DDS2 | E142: 1 | F142: =DDS!F34 -> 0.9177579591 | G142: =DDS!G34 -> -0.01458156925 | H142: =DDS!H34 -> -0.05258934416 | I142: =DDS!I34 -> 0.1468279244 | J142: =DDS!J34 -> 0.002585029993
D143: CUST | E143: 1 | F143: 0 | G143: 0 | H143: 0 | I143: 1 | J143: 0
D144: ESD | E144: 1 | F144: 0.3 | G144: 0.1 | H144: 0.6 | I144: 0 | J144: 0
D145: GP | E145: 1 | F145: ='GROSS PLANT'!E42 -> 0.4841867519 | G145: ='GROSS PLANT'!F42 -> 0.2446636008 | H145: ='GROSS PLANT'!G42 -> 0.2650926256 | I145: ='GROSS PLANT'!H42 -> 0.006057021687 | J145: ='GROSS PLANT'!I42 -> 0
D146: LABOR | E146: 1 | F146: ='FORM 1'!C25 -> 0.4608921071 | G146: ='FORM 1'!D25 -> 0.08724591166 | H146: ='FORM 1'!E25 -> 0.314657853 | I146: ='FORM 1'!F25 -> 0.1372041283 | J146: ='FORM 1'!G25 -> 0
D147: P | E147: 1 | F147: ='FORM 1'!C13 -> 1 | G147: ='FORM 1'!D13 -> 0 | H147: ='FORM 1'!E13 -> 0 | I147: ='FORM 1'!F13 -> 0 | J147: ='FORM 1'!G13 -> 0
D148: PT | E148: =SUM(F148:J148) -> 1 | F148: =+'FORM 1'!C17 -> 0.6686572521 | G148: =+'FORM 1'!D17 -> 0.3313427479 | H148: 0 | I148: 0 | J148: 0
D149: PTD | E149: 1 | F149: ='FORM 1'!C16 -> 0.4915374608 | G149: ='FORM 1'!D16 -> 0.2435737778 | H149: ='FORM 1'!E16 -> 0.2648887615 | I149: ='FORM 1'!F16 -> 0 | J149: ='FORM 1'!G16 -> 0
D150: T | E150: 1 | F150: ='FORM 1'!C14 -> 0 | G150: ='FORM 1'!D14 -> 1 | H150: ='FORM 1'!E14 -> 0 | I150: ='FORM 1'!F14 -> 0 | J150: ='FORM 1'!G14 -> 0
D151: TAXDEPR | E151: 1 | F151: ='TAX DEPR'!C24 -> 0.4207111026 | G151: ='TAX DEPR'!D24 -> 0.254249406 | H151: ='TAX DEPR'!E24 -> 0.3179800656 | I151: ='TAX DEPR'!F24 -> 0.007059425834 | J151: ='TAX DEPR'!G24 -> 0
D152: TD | E152: 1 | F152: ='FORM 1'!C18 -> 0 | G152: ='FORM 1'!D18 -> 0.4790397699 | H152: ='FORM 1'!E18 -> 0.5209602301 | I152: ='FORM 1'!F18 -> 0 | J152: ='FORM 1'!G18 -> 0

Sheet DDS
B1: =+'TOTAL FUNCFAC'!A1 -> PacifiCorp
B2: =+'TOTAL FUNCFAC'!A2 -> 12 Months Ended December 2016
B3: Reg Assets / Deferred Debits
B5: Pri-Acct | C5: Factor | D5: Function | E5: Total | F5: Production | G5: Transmission | H5: DPW | I5: CUST | J5: DMSC
A6: ="RA"&"-"&C6 -> RA-SE | B6: 182M | C6: SE | D6: P | E6: 207566.0848 | F6: =VLOOKUP($D6,$D$71:$J$83,3,FALSE)*$E6 -> 207566.0848 | G6: =VLOOKUP($D6,$D$71:$J$83,4,FALSE)*$E6 -> 0 | H6: =VLOOKUP($D6,$D$71:$J$83,5,FALSE)*$E6 -> 0 | I6: =VLOOKUP($D6,$D$71:$J$83,6,FALSE)*$E6 -> 0 | J6: =VLOOKUP($D6,$D$71:$J$83,7,FALSE)*$E6 -> 0
A7: RA-SG | B7: 182M | C7: SG | D7: P | E7: 3449.40552 | F7: 3449.40552 | G7: 0 | H7: 0 | I7: 0 | J7: 0
A8: RA-SGCT | B8: 182M | C8: SGCT | D8: P | E8: 654.74794 | F8: 654.74794 | G8: 0 | H8: 0 | I8: 0 | J8: 0
A9: RA-SG-P | B9: 182M | C9: SG-P | D9: P | E9: 0 | F9: 0 | G9: 0 | H9: 0 | I9: 0 | J9: 0
A10: RA-SO | B10: 182M | C10: SO | D10: DMSC | E10: 3444.51212 | F10: 0 | G10: 0 | H10: 0 | I10: 0 | J10: 3444.51212
A11: RA-SO | B11: 182M | C11: SO | D11: LABOR | E11: 527126.7933 | F11: 242948.5785 | G11: 45989.65764 | H11: 165864.585 | I11: 72323.97216 | J11: 0
A12: RA-SO | B12: 182M | C12: SO | D12: ESD | E12: 21060.48063 | F12: 6318.144189 | G12: 2106.048063 | H12: 12636.28838 | I12: 0 | J12: 0
A13: RA-SO | B13: 182M | C13: SO | D13: P | E13: 0 | F13: 0 | G13: 0 | H13: 0 | I13: 0 | J13: 0
A14: RA-SO | B14: 182M | C14: SO | D14: TD | E14: 0 | F14: 0 | G14: 0 | H14: 0 | I14: 0 | J14: 0
A15: ="RA"&"-"&C15 -> RA-OTHER | B15: 182M | C15: OTHER | D15: CUST | E15: -1016.48757 | F15: 0 | G15: 0 | H15: 0 | I15: -1016.48757 | J15: 0
A16: ="RA"&"-"&C16 -> RA-OTHER | B16: 182M | C16: OTHER | D16: DMSC | E16: 40.60556 | F16: 0 | G16: 0 | H16: 0 | I16: 0 | J16: 40.60556
A17: RA-OTHER | B17: 182M | C17: OTHER | D17: LABOR | E17: 1010.91511 | F17: 465.9227951 | G17: 88.19821038 | H17: 318.0923781 | I17: 138.7017264 | J17: 0
A18: RA-OTHER | B18: 182M | C18: OTHER | D18: P | E18: 59780.91382 | F18: 59780.91382 | G18: 0 | H18: 0 | I18: 0 | J18: 0
A19: RA-OTHER | B19: 182M | C19: OTHER | D19: DPW | E19: 0 | F19: 0 | G19: 0 | H19: 0 | I19: 0 | J19: 0
A20: RA-OTHER | B20: 182M | C20: OTHER | D20: PTD | E20: 875.23119 | F20: 430.2089167 | G20: 213.1833674 | H20: 231.8389059 | I20: 0 | J20: 0
A21: RA-OTHER | B21: 182M | C21: OTHER | D21: ESD | E21: 0 | F21: 0 | G21: 0 | H21: 0 | I21: 0 | J21: 0
A22: RA-TROJD | B22: 182M | C22: TROJD | D22: P | E22: 0 | F22: 0 | G22: 0 | H22: 0 | I22: 0 | J22: 0
A23: RA-TROJP | B23: 182M | C23: TROJP | D23: P | E23: 0 | F23: 0 | G23: 0 | H23: 0 | I23: 0 | J23: 0
A24: RA-SITUS | B24: 182M | C24: SITUS | D24: DMSC | E24: 26.86647 | F24: 0 | G24: 0 | H24: 0 | I24: 0 | J24: 26.86647
A25: RA-SITUS | B25: 182M | C25: SITUS | D25: LABOR | E25: -1737.01753 | F25: -800.5776695 | G25: -151.547678 | H25: -546.5662066 | I25: -238.325976 | J25: 0
A26: RA-SITUS | B26: 182M | C26: SITUS | D26: P | E26: 10338.92606 | F26: 10338.92606 | G26: 0 | H26: 0 | I26: 0 | J26: 0
A27: RA-SITUS | B27: 182M | C27: SITUS | D27: PTD | E27: 0 | F27: 0 | G27: 0 | H27: 0 | I27: 0 | J27: 0
A28: RA-SITUS | B28: 182M | C28: SITUS | D28: CUST | E28: 1764.32298 | F28: 0 | G28: 0 | H28: 0 | I28: 1764.32298 | J28: 0
B29: Total-SO | E29: =SUMIF($A:$A,"RA-SO",E:E) -> 551631.786 | F29: 249266.7227 | G29: 48095.7057 | H29: 178500.8734 | I29: 72323.97216 | J29: 3444.51212
B30: Total-OTHER | E30: =SUMIF($A:$A,"RA-OTHER",E:E) -> 60691.17811 | F30: 60677.04553 | G30: 301.3815778 | H30: 549.931284 | I30: -877.7858436 | J30: 40.60556
B31: Total SITUS | E31: =SUMIF($A:$A,"RA-SITUS",E:E) -> 10393.09798 | F31: 9538.348391 | G31: -151.547678 | H31: -546.5662066 | I31: 1525.997004 | J31: 26.86647
B32: Total RA | E32: =SUMIF($B:$B,"182M",E:E) -> 834386.3004 | F32: 531152.3549 | G32: 48245.5396 | H32: 178504.2385 | I32: 72972.18332 | J32: 3511.98415
B33: DDSO2 FACTOR | E33: =SUM(F33:J33) -> 1 | F33: =F29/$E29 -> 0.4518715726 | G33: =G29/$E29 -> 0.0871880608 | H33: =H29/$E29 -> 0.3235869976 | I33: =I29/$E29 -> 0.1311091456 | J33: =J29/$E29 -> 0.006244223424
B34: DDS2 FACTOR | E34: =SUM(F34:J34) -> 1 | F34: =F31/$E31 -> 0.9177579591 | G34: =G31/$E31 -> -0.01458156925 | H34: =H31/$E31 -> -0.05258934416 | I34: =I31/$E31 -> 0.1468279244 | J34: =J31/$E31 -> 0.002585029993
A36: ="DD"&"-"&C36 -> DD-SE | B36: 186M | C36: SE | D36: P | E36: 2318.45218 | F36: =VLOOKUP($D36,$D$71:$J$83,3,FALSE)*$E36 -> 2318.45218 | G36: =VLOOKUP($D36,$D$71:$J$83,4,FALSE)*$E36 -> 0 | H36: =VLOOKUP($D36,$D$71:$J$83,5,FALSE)*$E36 -> 0 | I36: =VLOOKUP($D36,$D$71:$J$83,6,FALSE)*$E36 -> 0 | J36: =VLOOKUP($D36,$D$71:$J$83,7,FALSE)*$E36 -> 0
A37: DD-SG | B37: 186M | C37: SG | D37: P | E37: 38588.96433 | F37: =VLOOKUP($D37,$D$71:$J$83,3,FALSE)*$E37 -> 38588.96433 | G37: =VLOOKUP($D37,$D$71:$J$83,4,FALSE)*$E37 -> 0 | H37: =VLOOKUP($D37,$D$71:$J$83,5,FALSE)*$E37 -> 0 | I37: =VLOOKUP($D37,$D$71:$J$83,6,FALSE)*$E37 -> 0 | J37: =VLOOKUP($D37,$D$71:$J$83,7,FALSE)*$E37 -> 0
A38: DD-SG | B38: 186M | C38: SG | D38: T | E38: 12943.32696 | F38: =VLOOKUP($D38,$D$71:$J$83,3,FALSE)*$E38 -> 0 | G38: =VLOOKUP($D38,$D$71:$J$83,4,FALSE)*$E38 -> 12943.32696 | H38: =VLOOKUP($D38,$D$71:$J$83,5,FALSE)*$E38 -> 0 | I38: =VLOOKUP($D38,$D$71:$J$83,6,FALSE)*$E38 -> 0 | J38: =VLOOKUP($D38,$D$71:$J$83,7,FALSE)*$E38 -> 0
A39: DD-SO | B39: 186M | C39: SO | D39: DMSC | E39: 191.90202 | F39: =VLOOKUP($D39,$D$71:$J$83,3,FALSE)*$E39 -> 0 | G39: =VLOOKUP($D39,$D$71:$J$83,4,FALSE)*$E39 -> 0 | H39: =VLOOKUP($D39,$D$71:$J$83,5,FALSE)*$E39 -> 0 | I39: =VLOOKUP($D39,$D$71:$J$83,6,FALSE)*$E39 -> 0 | J39: =VLOOKUP($D39,$D$71:$J$83,7,FALSE)*$E39 -> 191.90202
A41: DD-OTHER | B41: 186M | C41: OTHER | D41: DMSC | E41: 2005.63805 | F41: =VLOOKUP($D41,$D$71:$J$83,3,FALSE)*$E41 -> 0 | G41: =VLOOKUP($D41,$D$71:$J$83,4,FALSE)*$E41 -> 0 | H41: =VLOOKUP($D41,$D$71:$J$83,5,FALSE)*$E41 -> 0 | I41: =VLOOKUP($D41,$D$71:$J$83,6,FALSE)*$E41 -> 0 | J41: =VLOOKUP($D41,$D$71:$J$83,7,FALSE)*$E41 -> 2005.63805
A42: DD-OTHER | B42: 186M | C42: OTHER | D42: LABOR | E42: 0 | F42: 0 | G42: 0 | H42: 0 | I42: 0 | J42: 0
A43: DD-OTHER | B43: 186M | C43: OTHER | D43: P | E43: 0 | F43: 0 | G43: 0 | H43: 0 | I43: 0 | J43: 0
A44: DD-OTHER | B44: 186M | C44: OTHER | D44: PTD | E44: 60.72236 | F44: 29.84731465 | G44: 14.79037462 | H44: 16.08467073 | I44: 0 | J44: 0
A45: DD-OTHER | B45: 186M | C45: OTHER | D45: T | E45: 3063.34442 | F45: 0 | G45: 3063.34442 | H45: 0 | I45: 0 | J45: 0
A46: DD-SITUS | B46: 186M | C46: SITUS | D46: T | E46: 0 | F46: 0 | G46: 0 | H46: 0 | I46: 0 | J46: 0
A47: DD-SITUS | B47: 186M | C47: SITUS | D47: LABOR | E47: 0 | F47: 0 | G47: 0 | H47: 0 | I47: 0 | J47: 0
B48: Total SITUS | E48: =SUMIF($A:$A,"DD-SITUS",E:E) -> 0 | F48: 0 | G48: 0 | H48: 0 | I48: 0 | J48: 0
B49: Total SG | E49: =SUMIF($A:$A,"DD-SG",E:E) -> 51532.29129 | F49: 38588.96433 | G49: 12943.32696 | H49: 0 | I49: 0 | J49: 0
B50: Total-SO | E50: =SUMIF($A:$A,"DD-SO",E:E) -> 191.90202 | F50: 0 | G50: 0 | H50: 0 | I50: 0 | J50: 191.90202
B51: Total-DD | E51: =SUMIF($B:$B,"186M",E:E) -> 59172.35032 | F51: 40937.26382 | G51: 16021.46175 | H51: 16.08467073 | I51: 0 | J51: 2197.54007
B52: DDS6 FACTOR | E52: =SUM(F52:J52) -> 0 | F52: =IFERROR(F48/$E48,0) -> 0 | G52: =IFERROR(G48/$E48,0) -> 0 | H52: 0 | I52: 0 | J52: 0
B53: DEFSG FACTOR | E53: =SUM(F53:J53) -> 1 | F53: =F49/$E49 -> 0.7488307499 | G53: 0.2511692501 | H53: 0 | I53: 0 | J53: 0
B54: DDSO6 FACTOR | E54: =SUM(F54:J54) -> 1 | F54: =IFERROR(F50/$E50,0) -> 0 | G54: =IFERROR(G50/$E50,0) -> 0 | H54: 0 | I54: 0 | J54: 1
B56: Major Adjustment
B57: 1998 Early Retirement | D57: LABOR | E57: 0 | F57: =VLOOKUP($D57,$D$71:$J$83,3,FALSE)*$E57 -> 0 | G57: =VLOOKUP($D57,$D$71:$J$83,4,FALSE)*$E57 -> 0 | H57: =VLOOKUP($D57,$D$71:$J$83,5,FALSE)*$E57 -> 0 | I57: =VLOOKUP($D57,$D$71:$J$83,6,FALSE)*$E57 -> 0 | J57: =VLOOKUP($D57,$D$71:$J$83,7,FALSE)*$E57 -> 0
B58: 1999 Early Retirement | D58: LABOR | E58: 0 | F58: =VLOOKUP($D58,$D$71:$J$83,3,FALSE)*$E58 -> 0 | G58: =VLOOKUP($D58,$D$71:$J$83,4,FALSE)*$E58 -> 0 | H58: =VLOOKUP($D58,$D$71:$J$83,5,FALSE)*$E58 -> 0 | I58: =VLOOKUP($D58,$D$71:$J$83,6,FALSE)*$E58 -> 0 | J58: =VLOOKUP($D58,$D$71:$J$83,7,FALSE)*$E58 -> 0
B59: Transition Planning | D59: PTD | E59: 0 | F59: =VLOOKUP($D59,$D$71:$J$83,3,FALSE)*$E59 -> 0 | G59: =VLOOKUP($D59,$D$71:$J$83,4,FALSE)*$E59 -> 0 | H59: =VLOOKUP($D59,$D$71:$J$83,5,FALSE)*$E59 -> 0 | I59: =VLOOKUP($D59,$D$71:$J$83,6,FALSE)*$E59 -> 0 | J59: =VLOOKUP($D59,$D$71:$J$83,7,FALSE)*$E59 -> 0
B60: Environmental Clean-up | D60: ESD | E60: 0 | F60: =VLOOKUP($D60,$D$71:$J$83,3,FALSE)*$E60 -> 0 | G60: =VLOOKUP($D60,$D$71:$J$83,4,FALSE)*$E60 -> 0 | H60: =VLOOKUP($D60,$D$71:$J$83,5,FALSE)*$E60 -> 0 | I60: =VLOOKUP($D60,$D$71:$J$83,6,FALSE)*$E60 -> 0 | J60: =VLOOKUP($D60,$D$71:$J$83,7,FALSE)*$E60 -> 0
B61: Y2K | D61: PTD | E61: 0 | F61: =VLOOKUP($D61,$D$71:$J$83,3,FALSE)*$E61 -> 0 | G61: =VLOOKUP($D61,$D$71:$J$83,4,FALSE)*$E61 -> 0 | H61: =VLOOKUP($D61,$D$71:$J$83,5,FALSE)*$E61 -> 0 | I61: =VLOOKUP($D61,$D$71:$J$83,6,FALSE)*$E61 -> 0 | J61: =VLOOKUP($D61,$D$71:$J$83,7,FALSE)*$E61 -> 0
B62: Subtotal Major Adjustments | E62: =SUM(E57:E61) -> 0 | F62: 0 | G62: 0 | H62: 0 | I62: 0 | J62: 0
B64: Total 186M SO | E64: =+E50+E62 -> 191.90202 | F64: 0 | G64: 0 | H64: 0 | I64: 0 | J64: 191.90202
B66: Total 182 &186 | E66: =SUM(E51,E32) -> 893558.6507 | F66: =SUM(F32,F51) -> 572089.6187 | G66: =SUM(G32,G51) -> 64267.00136 | H66: =SUM(H32,H51) -> 178520.3232 | I66: =SUM(I32,I51) -> 72972.18332 | J66: =SUM(J32,J51) -> 5709.52422
E70: Total | F70: Production | G70: Transmission | H70: Poles & Wires | I70: Customers | J70: Miscellaneous
D71: DMSC | E71: =SUM(F71:J71) -> 1 | F71: 0 | G71: 0 | H71: 0 | I71: 0 | J71: 1
D72: DPW | E72: =SUM(F72:J72) -> 1 | F72: 0 | G72: 0 | H72: 1 | I72: 0 | J72: 0
D73: CUST | E73: 1 | F73: 0 | G73: 0 | H73: 0 | I73: 1 | J73: 0
D74: ESD | E74: 1 | F74: 0.3 | G74: 0.1 | H74: 0.6 | I74: 0 | J74: 0
D75: GP | E75: 1 | F75: ='GROSS PLANT'!$E$42 -> 0.4841867519 | G75: ='GROSS PLANT'!$F$42 -> 0.2446636008 | H75: ='GROSS PLANT'!$G$42 -> 0.2650926256 | I75: ='GROSS PLANT'!$H$42 -> 0.006057021687 | J75: ='GROSS PLANT'!$I$42 -> 0
D76: RETAIL | E76: 1 | F76: 0 | G76: 0 | H76: 0 | I76: 1 | J76: 0
D77: LABOR | E77: 1 | F77: ='FORM 1'!$C$25 -> 0.4608921071 | G77: ='FORM 1'!$D$25 -> 0.08724591166 | H77: ='FORM 1'!$E$25 -> 0.314657853 | I77: ='FORM 1'!$F$25 -> 0.1372041283 | J77: ='FORM 1'!$G$25 -> 0
D78: P | E78: 1 | F78: ='FORM 1'!$C$13 -> 1 | G78: ='FORM 1'!$D$13 -> 0 | H78: ='FORM 1'!$E$13 -> 0 | I78: ='FORM 1'!$F$13 -> 0 | J78: ='FORM 1'!$G$13 -> 0
D79: PT | E79: =SUM(F79:J79) -> 1 | F79: ='FORM 1'!$C$17 -> 0.6686572521 | G79: ='FORM 1'!$D$17 -> 0.3313427479 | H79: ='FORM 1'!$E$17 -> 0 | I79: ='FORM 1'!$F$17 -> 0 | J79: ='FORM 1'!$G$17 -> 0
D80: PTD | E80: 1 | F80: ='FORM 1'!$C$16 -> 0.4915374608 | G80: ='FORM 1'!$D$16 -> 0.2435737778 | H80: ='FORM 1'!$E$16 -> 0.2648887615 | I80: ='FORM 1'!$F$16 -> 0 | J80: ='FORM 1'!$G$16 -> 0
D81: T | E81: 1 | F81: ='FORM 1'!$C$14 -> 0 | G81: ='FORM 1'!$D$14 -> 1 | H81: ='FORM 1'!$E$14 -> 0 | I81: ='FORM 1'!$F$14 -> 0 | J81: ='FORM 1'!$G$14 -> 0
D82: TAXDEPR | E82: 1 | F82: ='TAX DEPR'!C24 -> 0.4207111026 | G82: ='TAX DEPR'!D24 -> 0.254249406 | H82: ='TAX DEPR'!E24 -> 0.3179800656 | I82: ='TAX DEPR'!F24 -> 0.007059425834 | J82: ='TAX DEPR'!G24 -> 0
D83: TD | E83: 1 | F83: ='FORM 1'!$C$18 -> 0 | G83: ='FORM 1'!$D$18 -> 0.4790397699 | H83: ='FORM 1'!$E$18 -> 0.5209602301 | I83: ='FORM 1'!$F$18 -> 0 | J83: ='FORM 1'!$G$18 -> 0

Sheet ACCUMDIT
A1: =+'TOTAL FUNCFAC'!A1 -> PacifiCorp
A2: =+'TOTAL FUNCFAC'!A2 -> 12 Months Ended December 2016
A3: Deferred Income Tax - Balance
A7: DITBALRL
A8: Pacific Division | C8: Total | D8: Production | E8: Transmission | F8: DPW | G8: CUST | H8: DMSC
A9: Pacific Division
A10: Production | B10: P | C10: 38496372 | D10: =VLOOKUP($B10,$B$59:$H$72,3,FALSE)*$C10 -> 38496372 | E10: =VLOOKUP($B10,$B$59:$H$72,4,FALSE)*$C10 -> 0 | F10: =VLOOKUP($B10,$B$59:$H$72,5,FALSE)*$C10 -> 0 | G10: =VLOOKUP($B10,$B$59:$H$72,6,FALSE)*$C10 -> 0 | H10: =VLOOKUP($B10,$B$59:$H$72,7,FALSE)*$C10 -> 0
A11: Transmission | B11: T | C11: 16878780 | D11: =VLOOKUP($B11,$B$59:$H$72,3,FALSE)*$C11 -> 0 | E11: =VLOOKUP($B11,$B$59:$H$72,4,FALSE)*$C11 -> 16878780 | F11: =VLOOKUP($B11,$B$59:$H$72,5,FALSE)*$C11 -> 0 | G11: =VLOOKUP($B11,$B$59:$H$72,6,FALSE)*$C11 -> 0 | H11: =VLOOKUP($B11,$B$59:$H$72,7,FALSE)*$C11 -> 0
A12: Distribution | B12: DPW | C12: 17401021 | D12: =VLOOKUP($B12,$B$59:$H$72,3,FALSE)*$C12 -> 0 | E12: =VLOOKUP($B12,$B$59:$H$72,4,FALSE)*$C12 -> 0 | F12: =VLOOKUP($B12,$B$59:$H$72,5,FALSE)*$C12 -> 17401021 | G12: =VLOOKUP($B12,$B$59:$H$72,6,FALSE)*$C12 -> 0 | H12: =VLOOKUP($B12,$B$59:$H$72,7,FALSE)*$C12 -> 0
A13: General | B13: G | C13: -301646 | D13: =VLOOKUP($B13,$B$59:$H$72,3,FALSE)*$C13 -> -66101.14921 | E13: =VLOOKUP($B13,$B$59:$H$72,4,FALSE)*$C13 -> -105960.104 | F13: =VLOOKUP($B13,$B$59:$H$72,5,FALSE)*$C13 -> -124596.3511 | G13: =VLOOKUP($B13,$B$59:$H$72,6,FALSE)*$C13 -> -4988.395712 | H13: =VLOOKUP($B13,$B$59:$H$72,7,FALSE)*$C13 -> 0
A14: Mining Plant | B14: P | C14: 5248 | D14: =VLOOKUP($B14,$B$59:$H$72,3,FALSE)*$C14 -> 5248 | E14: =VLOOKUP($B14,$B$59:$H$72,4,FALSE)*$C14 -> 0 | F14: =VLOOKUP($B14,$B$59:$H$72,5,FALSE)*$C14 -> 0 | G14: =VLOOKUP($B14,$B$59:$H$72,6,FALSE)*$C14 -> 0 | H14: =VLOOKUP($B14,$B$59:$H$72,7,FALSE)*$C14 -> 0
A16: Total Pacific Division | C16: =SUM(C10:C14) -> 72479775 | D16: =SUM(D10:D14) -> 38435518.85 | E16: 16772819.9 | F16: 17276424.65 | G16: -4988.395712 | H16: 0
A18: Utah Division
A19: Production | B19: P | C19: 62329130 | D19: =VLOOKUP($B19,$B$59:$H$72,3,FALSE)*$C19 -> 62329130 | E19: =VLOOKUP($B19,$B$59:$H$72,4,FALSE)*$C19 -> 0 | F19: =VLOOKUP($B19,$B$59:$H$72,5,FALSE)*$C19 -> 0 | G19: =VLOOKUP($B19,$B$59:$H$72,6,FALSE)*$C19 -> 0 | H19: =VLOOKUP($B19,$B$59:$H$72,7,FALSE)*$C19 -> 0
A20: Transmission | B20: T | C20: 39083264 | D20: 0 | E20: 39083264 | F20: 0 | G20: 0 | H20: 0
A21: Distribution | B21: DPW | C21: 27580897 | D21: 0 | E21: 0 | F21: 27580897 | G21: 0 | H21: 0
A22: General | B22: G | C22: -695917 | D22: -152499.6634 | E22: -244456.8722 | F22: -287451.9101 | G22: -11508.55433 | H22: 0
A23: Mining Plant | B23: P | C23: 13520 | D23: 13520 | E23: 0 | F23: 0 | G23: 0 | H23: 0
A25: Total Utah Division | C25: =SUM(C19:C23) -> 128310894 | D25: =SUM(D19:D23) -> 62190150.34 | E25: 38838807.13 | F25: 27293445.09 | G25: -11508.55433 | H25: 0
A27: PACIFICORP
A28: Prod / Other Prod | B28: P | C28: 467189333 | D28: =VLOOKUP($B28,$B$59:$H$72,3,FALSE)*$C28 -> 467189333 | E28: =VLOOKUP($B28,$B$59:$H$72,4,FALSE)*$C28 -> 0 | F28: =VLOOKUP($B28,$B$59:$H$72,5,FALSE)*$C28 -> 0 | G28: =VLOOKUP($B28,$B$59:$H$72,6,FALSE)*$C28 -> 0 | H28: =VLOOKUP($B28,$B$59:$H$72,7,FALSE)*$C28 -> 0
A29: Cholla Unit 4 | B29: P | C29: 31303088 | D29: 31303088 | E29: 0 | F29: 0 | G29: 0 | H29: 0
A30: Gadsby Unit 4, 5 & 6 | B30: P | C30: 5888838 | D30: 5888838 | E30: 0 | F30: 0 | G30: 0 | H30: 0
A31: Hydro-PPL | B31: P | C31: 38303388 | D31: 38303388 | E31: 0 | F31: 0 | G31: 0 | H31: 0
A32: Hydro-UPL | B32: P | C32: 11779913 | D32: 11779913 | E32: 0 | F32: 0 | G32: 0 | H32: 0
A33: Transmission | B33: T | C33: 274172198 | D33: 0 | E33: 274172198 | F33: 0 | G33: 0 | H33: 0
A34: Distribution | B34: DPW | C34: 937458888 | D34: 0 | E34: 0 | F34: 937458888 | G34: 0 | H34: 0
A35: General/ Intangibles | B35: G | C35: 67290041 | D35: 14745592.65 | E35: 23637176.49 | F35: 27794479.54 | G35: 1112792.319 | H35: 0
A36: Mining | B36: P | C36: -3059972 | D36: -3059972 | E36: 0 | F36: 0 | G36: 0 | H36: 0
A37: WCA - CAEE 2007+ | B37: P | C37: 2345795 | D37: 2345795 | E37: 0 | F37: 0 | G37: 0 | H37: 0
A38: WCA - CAGE 2007+ | B38: PT | C38: 1790826035 | D38: 1197448816 | E38: 593377219.4 | F38: 0 | G38: 0 | H38: 0
A39: WCA - CAGW 2007+ | B39: PT | C39: 410130366 | D39: 274236643.5 | E39: 135893722.5 | F39: 0 | G39: 0 | H39: 0
A40: WCA_CAGW 2007+ -Marengo | B40: P | C40: 0 | D40: 0 | E40: 0 | F40: 0 | G40: 0 | H40: 0
A41: WCA CAGW 2007+ -Goodnoe | B41: P | C41: 0 | D41: 0 | E41: 0 | F41: 0 | G41: 0 | H41: 0
A42: WCA - General 2007+ | B42: G | C42: 166230415 | D42: 36426876.09 | E42: 58392261.31 | F42: 68662283.45 | G42: 2748994.15 | H42: 0
A43: WCA - JBG 2007+ | B43: P | C43: 144114817 | D43: 144114817 | E43: 0 | F43: 0 | G43: 0 | H43: 0
A44: OREGON EXTRA BOOK DEPR | B44: P | C44: -57628316 | D44: -57628316 | E44: 0 | F44: 0 | G44: 0 | H44: 0
A46: Total PC (Post Merger) | C46: =SUM(C28:C44) -> 4286344827 | D46: =SUM(D28:D44) -> 2163094812 | E46: 1085472578 | F46: 1033915651 | G46: 3861786.469 | H46: 0
A48: Total Deferred Taxes | C48: =C16+C25+C46 -> 4487135496 | D48: =D16+D25+D46 -> 2263720481 | E48: 1141084205 | F48: 1078485521 | G48: 3845289.519 | H48: 0
A50: ACCMDITRL FACTOR | C50: 1 | D50: =D48/$C$48 -> 0.5044912245 | E50: =E48/$C$48 -> 0.2543012587 | F50: 0.2403505581 | G50: 0.0008569586371 | H50: 0
B54: ACCUMDIT | C54: =SUM(D54:F54) -> 0.4091663971 | D54: 0.09962591977 | E54: 0.3095404773 | F54: 0
C58: Total | D58: Production | E58: Transmission | F58: Poles & Wires | G58: Customers | H58: Miscellaneous
B59: DMSC | C59: =SUM(D59:H59) -> 1 | D59: 0 | E59: 0 | F59: 0 | G59: 0 | H59: 1
B60: DPW | C60: =SUM(D60:H60) -> 1 | D60: 0 | E60: 0 | F60: 1 | G60: 0 | H60: 0
B61: DDS2 | C61: 1 | D61: =DDS!F34 -> 0.9177579591 | E61: =DDS!G34 -> -0.01458156925 | F61: =DDS!H34 -> -0.05258934416 | G61: =DDS!I34 -> 0.1468279244 | H61: =DDS!J34 -> 0.002585029993
B62: CUST | C62: 1 | D62: 0 | E62: 0 | F62: 0 | G62: 1 | H62: 0
B63: ESD | C63: 1 | D63: 0.3 | E63: 0.1 | F63: 0.6 | G63: 0 | H63: 0
B64: G | C64: =SUM(D64:H64) -> 1 | D64: ='GENERAL PLANT'!E38 -> 0.2191348442 | E64: ='GENERAL PLANT'!F38 -> 0.3512730285 | F64: ='GENERAL PLANT'!G38 -> 0.413054876 | G64: ='GENERAL PLANT'!H38 -> 0.01653725132 | H64: ='GENERAL PLANT'!I38 -> 0
B65: GP | C65: 1 | D65: ='GROSS PLANT'!E42 -> 0.4841867519 | E65: ='GROSS PLANT'!F42 -> 0.2446636008 | F65: ='GROSS PLANT'!G42 -> 0.2650926256 | G65: ='GROSS PLANT'!H42 -> 0.006057021687 | H65: ='GROSS PLANT'!I42 -> 0
B66: LABOR | C66: 1 | D66: ='FORM 1'!C25 -> 0.4608921071 | E66: ='FORM 1'!D25 -> 0.08724591166 | F66: ='FORM 1'!E25 -> 0.314657853 | G66: ='FORM 1'!F25 -> 0.1372041283 | H66: ='FORM 1'!G25 -> 0
B67: P | C67: 1 | D67: 1 | E67: 0 | F67: 0 | G67: 0 | H67: 0
B68: PT | C68: =SUM(D68:H68) -> 1 | D68: =+'FORM 1'!C17 -> 0.6686572521 | E68: =+'FORM 1'!D17 -> 0.3313427479 | F68: =+'FORM 1'!E17 -> 0 | G68: =+'FORM 1'!F17 -> 0 | H68: =+'FORM 1'!G17 -> 0
B69: PTD | C69: 1 | D69: ='FORM 1'!C16 -> 0.4915374608 | E69: ='FORM 1'!D16 -> 0.2435737778 | F69: ='FORM 1'!E16 -> 0.2648887615 | G69: ='FORM 1'!F16 -> 0 | H69: ='FORM 1'!G16 -> 0
B70: T | C70: 1 | D70: 0 | E70: 1 | F70: 0 | G70: 0 | H70: 0
B71: TAXDEPR | C71: 1 | D71: ='TAX DEPR'!C24 -> 0.4207111026 | E71: ='TAX DEPR'!D24 -> 0.254249406 | F71: ='TAX DEPR'!E24 -> 0.3179800656 | G71: ='TAX DEPR'!F24 -> 0.007059425834 | H71: ='TAX DEPR'!G24 -> 0
B72: TD | C72: 1 | D72: ='FORM 1'!C18 -> 0 | E72: ='FORM 1'!D18 -> 0.4790397699 | F72: ='FORM 1'!E18 -> 0.5209602301 | G72: ='FORM 1'!F18 -> 0 | H72: ='FORM 1'!G18 -> 0
